Workbook

Sheet Submission Sheet
A1: Indication of FFR results for tender round 105, accepted tenders will be officially notified via issued acceptance letter
A4: Tender Ref | B4: Status | C4: Rejection Code | D4: Company Name | E4: Tendered Unit (BMU/Unit ID) | F4: TO connection / DNO connection | G4: Generation Type | H4: Start Date | I4: End Date | J4: Tendered Period (dd.mm.yy - dd.mm.yy) | K4: Applicable FFR Capability Data Table | L4: Tendered Frames per Service Day | U4: Tendered Prices*** | Y4: BMUs Only - Applicable Balancing Service (i.e. ABSVD Imbalance) YES/NO | Z4: Dynamic Providers Only | AD4: Dynamic Providers only | AK4: Please indicate as per detail change provision if you are adding volume | AL4: Please state the accepted tender that you are stacking onto | AM4: Please state if this is an all or nothing bid. Clearly reference what lines are included in each all or nothing bid | AN4: Non-Dynamic Providers | AP4: Comments
L5: Working Days (Mon-Fri) | O5: Saturdays | R5: Sundays/Bank Holidays | U5: Availability Fee (£/h) | V5: Nomination Fee (£/h) | W5: Window Initiation Fee (£/window) | X5: Response Energy Fee (Non-BM only) (£/MW/h) | Z5: Maximum Part Load Point (MW) | AA5: Minimum Part Load Point (MW) | AB5: Minimum MEL (MW) | AC5: Maximum SEL (MW) | AN5: Volume of Response Tendered
L6: From | M6: To | N6: Duration (h) | O6: From | P6: To | Q6: Duration (h) | R6: From | S6: To | T6: Duration (h) | AD6: Primary Response (max.) @ 0.2Hz (MW) | AE6: Primary Response (max.) @ 0.5Hz (MW) | AF6: Primary Response (max.) @ 0.8Hz (MW) | AG6: Secondary Response (max.) @ 0.2/0.2Hz (MW) | AH6: Secondary Response (max.) @ 0.5/0.5Hz (MW) | AI6: High Frequency Response (max.) @ 0.2Hz (MW) | AJ6: High Frequency Response (max.) @ 0.5Hz (MW) | AN6: Automatic Response Energy Deliverable by 10s (MW) | AO6: Automatic Response Energy Deliverable by 30s (MW)
A7: 105 | D7: Example Company | E7: Ex-FFR-1 | F7: TO connection | G7: Wind | H7: ='[1]Drop down boxes'!D3 -> 2018-10-01 | I7: ='[1]Drop down boxes'!E2 -> 2018-10-31 | J7: =IFERROR(TEXT(H7,"DD.MM.YY")&" - "&TEXT(I7,"DD.MM.YY")&" ("&DATEDIF(H7,I7+1,"m")&" months)","Tender End Date is Before Start Date") -> 01.10.18 - 31.10.18 (1 months) | K7: As per FFR framework agreement | L7: 2300 | M7: 700 | N7: =IF(L7>M7, (2400-L7+M7)/100, IF(AND(L7="",M7="",L7=M7), "", IF(L7=M7,24,(M7-L7)/100))) -> 8 | O7: 2300 | P7: 700 | Q7: =IF(O7>P7, (2400-O7+P7)/100, IF(AND(O7="",P7="",O7=P7), "", IF(O7=P7,24,(P7-O7)/100))) -> 8 | R7: 2300 | S7: 700 | T7: =IF(R7>S7, (2400-R7+S7)/100, IF(AND(R7="",S7="",R7=S7), "", IF(R7=S7,24,(S7-R7)/100))) -> 8 | U7: 100 | V7: 600 | W7: - | X7: - | Y7: - | Z7: - | AA7: - | AB7: - | AC7: - | AD7: - | AE7: - | AF7: - | AG7: - | AH7: - | AI7: - | AJ7: - | AK7: - | AL7: - | AN7: - | AO7: - | AP7: -
A8: =A7 -> 105 | D8: Example Company | E8: =E7 -> Ex-FFR-1 | F8: DNO connection | G8: Gas | H8: =H7 -> 2018-10-01 | I8: =I7 -> 2018-10-31 | J8: =IFERROR(TEXT(H8,"DD.MM.YY")&" - "&TEXT(I8,"DD.MM.YY")&" ("&DATEDIF(H8,I8+1,"m")&" months)","Tender End Date is Before Start Date") -> 01.10.18 - 31.10.18 (1 months) | K8: As per FFR framework agreement | L8: 700 | M8: 2300 | N8: =IF(L8>M8, (2400-L8+M8)/100, IF(AND(L8="",M8="",L8=M8), "", IF(L8=M8,24,(M8-L8)/100))) -> 16 | O8: 700 | P8: 2300 | Q8: =IF(O8>P8, (2400-O8+P8)/100, IF(AND(O8="",P8="",O8=P8), "", IF(O8=P8,24,(P8-O8)/100))) -> 16 | R8: 700 | S8: 2300 | T8: =IF(R8>S8, (2400-R8+S8)/100, IF(AND(R8="",S8="",R8=S8), "", IF(R8=S8,24,(S8-R8)/100))) -> 16 | U8: 600 | V8: 100 | W8: - | X8: - | Y8: - | Z8: - | AA8: - | AB8: - | AC8: - | AD8: - | AE8: - | AF8: - | AG8: - | AH8: - | AI8: - | AJ8: - | AK8: - | AL8: - | AN8: - | AO8: - | AP8: -
A9: =A7+0.001 -> 105.001 | B9: Reject | C9: 1.3 | D9: Arenko Cleantech Limited | E9: AR02-FFR | F9: DNO connection | G9: Battery | H9: 2019-03-31 | I9: 2019-09-30 | J9: 31.03.19 - 30.09.19 (6 months) | K9: As per FFR framework agreement | L9: 2300 | M9: 700 | N9: 8 | O9: 2300 | P9: 700 | Q9: 8 | R9: 2300 | S9: 700 | T9: 8 | U9: 219.35 | V9: - | W9: - | X9: - | Y9: - | Z9: - | AA9: - | AB9: - | AC9: - | AD9: 16.4 | AE9: 41 | AF9: 41 | AG9: 16.4 | AH9: 41 | AI9: - | AJ9: - | AK9: - | AL9: - | AM9: - | AN9: - | AO9: - | AP9: -
A10: =A9+0.001 -> 105.002 | B10: Reject | C10: 1.3 | D10: Arenko Cleantech Limited | E10: AR02-FFR | F10: DNO connection | G10: Battery | H10: 2019-09-30 | I10: 2020-03-31 | J10: 30.09.19 - 31.03.20 (6 months) | K10: As per FFR framework agreement | L10: 2300 | M10: 700 | N10: 8 | O10: 2300 | P10: 700 | Q10: 8 | R10: 2300 | S10: 700 | T10: 8 | U10: 227.55 | V10: - | W10: - | X10: - | Y10: - | Z10: - | AA10: - | AB10: - | AC10: - | AD10: 16.4 | AE10: 41 | AF10: 41 | AG10: 16.4 | AH10: 41 | AI10: - | AJ10: - | AK10: - | AL10: - | AM10: - | AN10: - | AO10: - | AP10: -
A11: 105.003 | B11: Reject | C11: 1.3 | D11: Arenko Cleantech Limited | E11: AR02-FFR | F11: DNO connection | G11: Battery | H11: 2020-03-31 | I11: 2020-09-30 | J11: 31.03.20 - 30.09.20 (6 months) | K11: As per FFR framework agreement | L11: 2300 | M11: 700 | N11: 8 | O11: 2300 | P11: 700 | Q11: 8 | R11: 2300 | S11: 700 | T11: 8 | U11: 219.35 | V11: - | W11: - | X11: - | Y11: - | Z11: - | AA11: - | AB11: - | AC11: - | AD11: 16.4 | AE11: 41 | AF11: 41 | AG11: 16.4 | AH11: 41 | AI11: - | AJ11: - | AK11: - | AL11: - | AM11: - | AN11: - | AO11: - | AP11: -
A12: 105.004 | B12: Reject | C12: 1.3 | D12: Arenko Cleantech Limited | E12: AR02-FFR | F12: DNO connection | G12: Battery | H12: 2020-09-30 | I12: 2021-03-31 | J12: 30.09.20 - 31.03.21 (6 months) | K12: As per FFR framework agreement | L12: 2300 | M12: 700 | N12: 8 | O12: 2300 | P12: 700 | Q12: 8 | R12: 2300 | S12: 700 | T12: 8 | U12: 227.55 | V12: - | W12: - | X12: - | Y12: - | Z12: - | AA12: - | AB12: - | AC12: - | AD12: 16.4 | AE12: 41 | AF12: 41 | AG12: 16.4 | AH12: 41 | AI12: - | AJ12: - | AK12: - | AL12: - | AM12: - | AN12: - | AO12: - | AP12: -
A13: 105.005 | B13: Reject | C13: 4 | D13: BESS HoldCo 3 Ltd | E13: DBESS-33 | F13: DNO connection | G13: Battery | H13: 2018-09-30 | I13: 2019-03-31 | J13: 30.09.18 - 31.03.19 (6 months) | K13: As per FFR framework agreement | L13: 2300 | M13: 700 | N13: 8 | O13: 2300 | P13: 700 | Q13: 8 | R13: 2300 | S13: 700 | T13: 8 | U13: =6.65*AF13 -> 192.85 | AD13: 14 | AE13: 29 | AF13: 29 | AG13: 14 | AH13: 29 | AI13: 14 | AJ13: 29 | AM13: A | AP13: Cannot be accepted with B,H or I
A14: 105.006 | B14: Reject | C14: 4 | D14: BESS HoldCo 3 Ltd | E14: DBESS-33 | F14: DNO connection | G14: Battery | H14: 2018-09-30 | I14: 2019-03-31 | J14: 30.09.18 - 31.03.19 (6 months) | K14: As per FFR framework agreement | L14: 2300 | M14: 1500 | N14: 16 | O14: 2300 | P14: 2300 | Q14: 24 | R14: 2300 | S14: 2300 | T14: 24 | U14: 192.85 | AD14: 14 | AE14: 29 | AF14: 29 | AG14: 14 | AH14: 29 | AI14: 14 | AJ14: 29 | AM14: B | AP14: Cannot be accepted with A,H or I
A15: 105.007 | B15: Reject | C15: 1.3 | D15: BESS HoldCo 3 Ltd | E15: DBESS-33 | F15: DNO connection | G15: Battery | H15: 2019-03-31 | I15: 2019-09-30 | J15: 31.03.19 - 30.09.19 (6 months) | K15: As per FFR framework agreement | L15: 2300 | M15: 2300 | N15: 24 | O15: 2300 | P15: 2300 | Q15: 24 | R15: 2300 | S15: 2300 | T15: 24 | U15: 192.85 | AD15: 14 | AE15: 29 | AF15: 29 | AG15: 14 | AH15: 29 | AI15: 14 | AJ15: 29 | AM15: C | AP15: Cannot be accepted with G
A16: 105.008 | B16: Reject | C16: 1.3 | D16: BESS HoldCo 3 Ltd | E16: DBESS-33 | F16: DNO connection | G16: Battery | H16: 2019-09-30 | I16: 2020-03-31 | J16: 30.09.19 - 31.03.20 (6 months) | K16: As per FFR framework agreement | L16: 2300 | M16: 700 | N16: 8 | O16: 2300 | P16: 700 | Q16: 8 | R16: 2300 | S16: 700 | T16: 8 | U16: 192.85 | AD16: 14 | AE16: 29 | AF16: 29 | AG16: 14 | AH16: 29 | AI16: 14 | AJ16: 29 | AM16: D | AP16: Cannot be accepted with G
A17: 105.009 | B17: Reject | C17: 1.3 | D17: BESS HoldCo 3 Ltd | E17: DBESS-33 | F17: DNO connection | G17: Battery | H17: 2020-03-31 | I17: 2020-09-30 | J17: 31.03.20 - 30.09.20 (6 months) | K17: As per FFR framework agreement | L17: 2300 | M17: 2300 | N17: 24 | O17: 2300 | P17: 2300 | Q17: 24 | R17: 2300 | S17: 2300 | T17: 24 | U17: 192.85 | AD17: 14 | AE17: 29 | AF17: 29 | AG17: 14 | AH17: 29 | AI17: 14 | AJ17: 29 | AM17: E | AP17: Cannot be accepted with G
A18: 105.01 | B18: Reject | C18: 1.1 | D18: BESS HoldCo 3 Ltd | E18: DBESS-33 | F18: DNO connection | G18: Battery | H18: 2020-09-30 | I18: 2021-03-31 | J18: 30.09.20 - 31.03.21 (6 months) | K18: As per FFR framework agreement | L18: 2300 | M18: 700 | N18: 8 | O18: 2300 | P18: 700 | Q18: 8 | R18: 2300 | S18: 700 | T18: 8 | U18: 192.85 | AD18: 14 | AE18: 29 | AF18: 29 | AG18: 14 | AH18: 29 | AI18: 14 | AJ18: 29 | AM18: F | AP18: Cannot be accepted with G
A19: 105.011 | B19: Reject | C19: 1.3 | D19: BESS HoldCo 3 Ltd | E19: DBESS-33 | F19: DNO connection | G19: Battery | H19: 2019-03-31 | I19: 2021-03-31 | J19: 31.03.19 - 31.03.21 (24 months) | K19: As per FFR framework agreement | L19: 2300 | M19: 2300 | N19: 24 | O19: 2300 | P19: 2300 | Q19: 24 | R19: 2300 | S19: 2300 | T19: 24 | U19: =(6.65/2+5.82/2)*AF19 -> 180.815 | AD19: 14 | AE19: 29 | AF19: 29 | AG19: 14 | AH19: 29 | AI19: 14 | AJ19: 29 | AM19: G | AP19: Cannot be accepted with C,D,E or F
A20: 105.012 | B20: Accepted | C20: N/A | D20: BESS HoldCo 3 Ltd | E20: DBESS-33 | F20: DNO connection | G20: Battery | H20: 2018-09-30 | I20: 2018-12-31 | J20: 30.09.18 - 31.12.18 (3 months) | K20: As per FFR framework agreement | L20: 2300 | M20: 700 | N20: 8 | O20: 2300 | P20: 700 | Q20: 8 | R20: 2300 | S20: 700 | T20: 8 | U20: =6.65*AF20 -> 192.85 | AD20: 14 | AE20: 29 | AF20: 29 | AG20: 14 | AH20: 29 | AI20: 14 | AJ20: 29 | AM20: H | AP20: Cannot be accepted with A,B or I
A21: 105.013 | B21: Reject | C21: 4 | D21: BESS HoldCo 3 Ltd | E21: DBESS-33 | F21: DNO connection | G21: Battery | H21: 2018-09-30 | I21: 2018-12-31 | J21: 30.09.18 - 31.12.18 (3 months) | K21: As per FFR framework agreement | L21: 2300 | M21: 1500 | N21: 16 | O21: 2300 | P21: 2300 | Q21: 24 | R21: 2300 | S21: 2300 | T21: 24 | U21: =6.65*AF21 -> 192.85 | AD21: 14 | AE21: 29 | AF21: 29 | AG21: 14 | AH21: 29 | AI21: 14 | AJ21: 29 | AM21: I | AP21: Cannot be accpeted with A,B or H
A22: 105.014 | B22: Reject | C22: 1.3 | D22: BESS HoldCo 2 Ltd | E22: DBESS-22 | F22: DNO connection | G22: Battery | H22: 2019-03-31 | I22: 2019-09-30 | J22: 31.03.19 - 30.09.19 (6 months) | K22: As per FFR framework agreement | L22: 2300 | M22: 2300 | N22: 24 | O22: 2300 | P22: 2300 | Q22: 24 | R22: 2300 | S22: 2300 | T22: 24 | U22: =6.5*AF22 -> 65 | AD22: =0.4*AE22 -> 4 | AE22: 10 | AF22: 10 | AG22: =0.4*AH22 -> 4 | AH22: 10 | AI22: =0.4*AJ22 -> 4 | AJ22: 10 | AM22: A | AP22: Cannot be accepted with E
A23: 105.015 | B23: Reject | C23: 1.3 | D23: BESS HoldCo 2 Ltd | E23: DBESS-22 | F23: DNO connection | G23: Battery | H23: 2019-09-30 | I23: 2020-03-31 | J23: 30.09.19 - 31.03.20 (6 months) | K23: As per FFR framework agreement | L23: 2300 | M23: 700 | N23: 8 | O23: 2300 | P23: 700 | Q23: 8 | R23: 2300 | S23: 700 | T23: 8 | U23: =6.5*AF23 -> 65 | AD23: =0.4*AE23 -> 4 | AE23: 10 | AF23: 10 | AG23: =0.4*AH23 -> 4 | AH23: 10 | AI23: =0.4*AJ23 -> 4 | AJ23: 10 | AM23: B | AP23: Cannot be accepted with E
A24: 105.016 | B24: Reject | C24: 1.3 | D24: BESS HoldCo 2 Ltd | E24: DBESS-22 | F24: DNO connection | G24: Battery | H24: 2020-03-31 | I24: 2020-09-30 | J24: 31.03.20 - 30.09.20 (6 months) | K24: As per FFR framework agreement | L24: 2300 | M24: 2300 | N24: 24 | O24: 2300 | P24: 2300 | Q24: 24 | R24: 2300 | S24: 2300 | T24: 24 | U24: =6.5*AF24 -> 65 | AD24: =0.4*AE24 -> 4 | AE24: 10 | AF24: 10 | AG24: =0.4*AH24 -> 4 | AH24: 10 | AI24: =0.4*AJ24 -> 4 | AJ24: 10 | AM24: C | AP24: Cannot be accepted with E
A25: 105.017 | B25: Accepted | C25: N/A | D25: BESS HoldCo 2 Ltd | E25: DBESS-22 | F25: DNO connection | G25: Battery | H25: 2020-09-30 | I25: 2021-03-31 | J25: 30.09.20 - 31.03.21 (6 months) | K25: As per FFR framework agreement | L25: 2300 | M25: 700 | N25: 8 | O25: 2300 | P25: 700 | Q25: 8 | R25: 2300 | S25: 700 | T25: 8 | U25: =6.5*AF25 -> 65 | AD25: =0.4*AE25 -> 4 | AE25: 10 | AF25: 10 | AG25: =0.4*AH25 -> 4 | AH25: 10 | AI25: =0.4*AJ25 -> 4 | AJ25: 10 | AM25: D | AP25: Cannot be accepted with E
A26: 105.018 | B26: Reject | C26: 4 | D26: BESS HoldCo 2 Ltd | E26: DBESS-22 | F26: DNO connection | G26: Battery | H26: 2019-03-31 | I26: 2021-03-31 | J26: 31.03.19 - 31.03.21 (24 months) | K26: As per FFR framework agreement | L26: 2300 | M26: 2300 | N26: 24 | O26: 2300 | P26: 2300 | Q26: 24 | R26: 2300 | S26: 2300 | T26: 24 | U26: =(6.5/2+6/2)*AF26 -> 62.5 | AD26: =0.4*AE26 -> 4 | AE26: 10 | AF26: 10 | AG26: =0.4*AH26 -> 4 | AH26: 10 | AI26: =0.4*AJ26 -> 4 | AJ26: 10 | AM26: E | AP26: Cannot accepted with A,B,C or D
A27: 105.019 | B27: Reject | C27: 1.3 | D27: Bolshan Renewables Limited | E27: BRLR-1 | F27: DNO connection | G27: DSF: Storage (for export) | H27: 2019-09-30 | I27: 2021-03-31 | J27: 30.09.19 - 31.03.21 (18 months) | K27: As per FFR framework agreement | L27: 2300 | M27: 2300 | N27: 24 | O27: 2300 | P27: 2300 | Q27: 24 | R27: 2300 | S27: 2300 | T27: 24 | U27: 203 | V27: 0 | AD27: 5.6 | AE27: 14 | AF27: 14 | AG27: 5.6 | AH27: 14 | AI27: 5.6 | AJ27: 14
A28: 105.02 | B28: Reject | C28: 4 | D28: Buxton Power Limited | E28: BPLFFR-1 | F28: DNO connection | G28: Diesel | H28: 2018-09-30 | I28: 2018-12-31 | J28: 30.09.18 - 31.12.18 (3 months) | K28: As per FFR framework agreement | L28: 2300 | M28: 1500 | N28: 16 | O28: 2300 | P28: 1500 | Q28: 16 | R28: 2300 | S28: 1500 | T28: 16 | U28: 25.6 | AN28: 0 | AO28: 16
A29: 105.021 | B29: Accepted | C29: N/A | D29: Buxton Power Limited | E29: BPLFFR-1 | F29: DNO connection | G29: Diesel | H29: 2018-09-30 | I29: 2018-10-31 | J29: 30.09.18 - 31.10.18 (1 months) | K29: As per FFR framework agreement | L29: 2300 | M29: 2300 | N29: 24 | O29: 2300 | P29: 2300 | Q29: 24 | R29: 2300 | S29: 2300 | T29: 24 | U29: 24 | AN29: 0 | AO29: 16
A30: 105.022 | B30: Reject | C30: 1.3 | D30: Centrica Brigg Ltd | E30: ROOSB-1 | F30: DNO connection | G30: Battery | H30: 2019-03-31 | I30: 2019-09-30 | J30: 31.03.19 - 30.09.19 (6 months) | K30: As per FFR framework agreement | L30: 2300 | M30: 700 | O30: 2300 | P30: 700 | Q30: 8 | R30: 2300 | S30: 700 | T30: 8 | U30: 269.28 | V30: 0 | W30: 0 | Y30: Yes | AD30: 17.6 | AE30: 44 | AF30: 44 | AG30: 17.6 | AH30: 44 | AI30: 0 | AJ30: 0 | AK30: n/a | AL30: n/a | AP30: Part load point, MEL and SEL are n/a here
A31: 105.023 | B31: Reject | C31: 1.3 | D31: Centrica Brigg Ltd | E31: ROOSB-1 | F31: DNO connection | G31: Battery | H31: 2019-04-01 | I31: 2019-09-30 | J31: 01.04.19 - 30.09.19 (6 months) | K31: As per FFR framework agreement | L31: 700 | M31: 2300 | N31: 16 | O31: 700 | P31: 2300 | Q31: 16 | R31: 700 | S31: 2300 | T31: 16 | U31: 192.5 | V31: 0 | W31: 0 | Y31: Yes | AD31: 7 | AE31: 14 | AF31: 35 | AG31: 14 | AH31: 35 | AI31: 0 | AJ31: 0 | AK31: n/a | AL31: n/a | AP31: Part load point, MEL and SEL are n/a here
A32: 105.024 | B32: Reject | C32: 1.3 | D32: Centrica Brigg Ltd | E32: ROOSB-1 | F32: DNO connection | G32: Battery | H32: 2019-09-30 | I32: 2020-03-31 | J32: 30.09.19 - 31.03.20 (6 months) | K32: As per FFR framework agreement | L32: 2300 | M32: 2300 | N32: 24 | O32: 2300 | P32: 2300 | Q32: 24 | R32: 2300 | S32: 2300 | T32: 24 | U32: 108.9 | V32: 0 | W32: 0 | Y32: Yes | AD32: 4.4 | AE32: 11 | AF32: 11 | AG32: 4.4 | AH32: 11 | AI32: 4.4 | AJ32: 11 | AK32: n/a | AL32: n/a | AP32: Part load point, MEL and SEL are n/a here
A33: 105.025 | B33: Reject | C33: 1.3 | D33: Centrica Brigg Ltd | E33: ROOSB-1 | F33: DNO connection | G33: Battery | H33: 2019-10-01 | I33: 2020-03-31 | J33: 01.10.19 - 31.03.20 (6 months) | K33: As per FFR framework agreement | L33: 700 | M33: 2300 | N33: 16 | O33: 700 | P33: 2300 | Q33: 16 | R33: 700 | S33: 2300 | T33: 16 | U33: 323.4 | V33: 0 | W33: 0 | Y33: Yes | AD33: 13.2 | AE33: 33 | AF33: 33 | AG33: 13.2 | AH33: 33 | AI33: 13.2 | AJ33: 33 | AK33: n/a | AL33: n/a | AP33: Part load point, MEL and SEL are n/a here
A34: 105.026 | B34: Reject | C34: 1.3 | D34: Centrica Brigg Ltd | E34: ROOSB-1 | F34: DNO connection | G34: Battery | H34: 2020-03-31 | I34: 2020-09-30 | J34: 31.03.20 - 30.09.20 (6 months) | K34: As per FFR framework agreement | L34: 2300 | M34: 2300 | N34: 24 | O34: 2300 | P34: 2300 | Q34: 24 | R34: 2300 | S34: 2300 | T34: 24 | U34: 240 | V34: 0 | W34: 0 | Y34: Yes | AD34: 9.6 | AE34: 24 | AF34: 24 | AG34: 9.6 | AH34: 24 | AI34: 9.6 | AJ34: 24 | AK34: n/a | AL34: n/a | AP34: Part load point, MEL and SEL are n/a here
A35: 105.027 | B35: Reject | C35: 1.3 | D35: Centrica Brigg Ltd | E35: ROOSB-1 | F35: DNO connection | G35: Battery | H35: 2020-03-31 | I35: 2020-09-30 | J35: 31.03.20 - 30.09.20 (6 months) | K35: As per FFR framework agreement | L35: 2300 | M35: 2300 | N35: 24 | O35: 2300 | P35: 2300 | Q35: 24 | R35: 2300 | S35: 2300 | T35: 24 | U35: 198 | V35: 0 | W35: 0 | Y35: Yes | AD35: 8 | AE35: 20 | AF35: 20 | AG35: 8 | AH35: 20 | AI35: 8 | AJ35: 20 | AK35: n/a | AL35: n/a | AP35: Part load point, MEL and SEL are n/a here
A36: 105.028 | B36: Reject | C36: 1.3 | D36: Centrica Brigg Ltd | E36: ROOSB-1 | F36: DNO connection | G36: Battery | H36: 2020-09-30 | I36: 2021-03-31 | J36: 30.09.20 - 31.03.21 (6 months) | K36: As per FFR framework agreement | L36: 2300 | M36: 2300 | N36: 24 | O36: 2300 | P36: 2300 | Q36: 24 | R36: 2300 | S36: 2300 | T36: 24 | U36: 264 | V36: 0 | W36: 0 | Y36: Yes | AD36: 9.6 | AE36: 24 | AF36: 24 | AG36: 9.6 | AH36: 24 | AI36: 9.6 | AJ36: 24 | AK36: n/a | AL36: n/a | AP36: Part load point, MEL and SEL are n/a here
A37: 105.029 | B37: Reject | C37: 1.3 | D37: Centrica Brigg Ltd | E37: ROOSB-1 | F37: DNO connection | G37: Battery | H37: 2020-09-30 | I37: 2021-03-31 | J37: 30.09.20 - 31.03.21 (6 months) | K37: As per FFR framework agreement | L37: 2300 | M37: 2300 | N37: 24 | O37: 2300 | P37: 2300 | Q37: 24 | R37: 2300 | S37: 2300 | T37: 24 | U37: 220 | V37: 0 | W37: 0 | Y37: Yes | AD37: 8 | AE37: 20 | AF37: 20 | AG37: 8 | AH37: 20 | AI37: 8 | AJ37: 20 | AK37: n/a | AL37: n/a | AP37: Part load point, MEL and SEL are n/a here
A38: =A37+0.005 -> 105.034 | B38: Reject | C38: 1.3 | D38: Energy Pool | E38: EPFFR-1 | F38: DNO connection | G38: Battery | H38: 2019-03-31 | I38: 2019-09-30 | J38: 31.03.19 - 30.09.19 (6 months) | K38: As per FFR framework agreement | L38: 2300 | M38: 2300 | N38: 24 | O38: 2300 | P38: 2300 | Q38: 24 | R38: 2300 | S38: 2300 | T38: 24 | U38: 7.6 | AD38: 0.4 | AE38: 1 | AF38: 1 | AG38: 0.4 | AH38: 1 | AI38: 0.4 | AJ38: 1 | AM38: A | AP38: Mutually exclusive of E High limited to 30 min
A39: 105.035 | B39: Reject | C39: 1.3 | D39: Energy Pool | E39: EPFFR-1 | F39: DNO connection | G39: Battery | H39: 2019-09-30 | I39: 2020-03-31 | J39: 30.09.19 - 31.03.20 (6 months) | K39: As per FFR framework agreement | L39: 2300 | M39: 1500 | N39: 16 | O39: 2300 | P39: 2300 | Q39: 24 | R39: 2300 | S39: 2300 | T39: 24 | U39: 9.1 | AD39: 0.4 | AE39: 1 | AF39: 1 | AG39: 0.4 | AH39: 1 | AI39: 0.4 | AJ39: 1 | AM39: B | AP39: EPFFR-1 "B" is an all or nothing bid, which is Mutually exclusive of E. High limited to 30 min
A40: 105.036 | B40: Reject | C40: 2 | D40: Energy Pool | E40: EPFFR-1 | F40: DNO connection | G40: Battery | H40: 2019-10-01 | I40: 2020-03-31 | J40: 01.10.19 - 31.03.20 (6 months) | K40: As per FFR framework agreement | L40: 1900 | M40: 2300 | N40: 4 | U40: 9.1 | AI40: 0.4 | AJ40: 1 | AM40: B | AP40: EPFFR-1 "B" is an all or nothing bid, which is Mutually exclusive of E. High limited to 30 min
A41: 105.037 | B41: Reject | C41: 1.3 | D41: Energy Pool | E41: EPFFR-1 | F41: DNO connection | G41: Battery | H41: 2020-03-31 | I41: 2020-09-30 | J41: 31.03.20 - 30.09.20 (6 months) | K41: As per FFR framework agreement | L41: 2300 | M41: 2300 | N41: 24 | O41: 2300 | P41: 2300 | Q41: 24 | R41: 2300 | S41: 2300 | T41: 24 | U41: 7.6 | AD41: 0.4 | AE41: 1 | AF41: 1 | AG41: 0.4 | AH41: 1 | AI41: 0.4 | AJ41: 1 | AM41: C | AP41: Mutually exclusive of E High limited to 30 min
A42: 105.038 | B42: Reject | C42: 1.3 | D42: Energy Pool | E42: EPFFR-1 | F42: DNO connection | G42: Battery | H42: 2020-09-30 | I42: 2021-03-31 | J42: 30.09.20 - 31.03.21 (6 months) | K42: As per FFR framework agreement | L42: 2300 | M42: 1500 | N42: 16 | O42: 2300 | P42: 2300 | Q42: 24 | R42: 2300 | S42: 2300 | T42: 24 | U42: 9.1 | AD42: 0.4 | AE42: 1 | AF42: 1 | AG42: 0.4 | AH42: 1 | AI42: 0.4 | AJ42: 1 | AM42: D | AP42: EPFFR-1 "D" is an all or nothing bid, which is Mutually exclusive of E. High limited to 30 min
A43: 105.039 | B43: Reject | C43: 2 | D43: Energy Pool | E43: EPFFR-1 | F43: DNO connection | G43: Battery | H43: 2020-10-01 | I43: 2021-03-31 | J43: 01.10.20 - 31.03.21 (6 months) | K43: As per FFR framework agreement | L43: 1900 | M43: 2300 | N43: 4 | U43: 9.1 | AI43: 0.4 | AJ43: 1 | AM43: D | AP43: EPFFR-1 "D" is an all or nothing bid, which is Mutually exclusive of E. High limited to 30 min
A44: 105.04 | B44: Reject | C44: 1.3 | D44: Energy Pool | E44: EPFFR-1 | F44: DNO connection | G44: Battery | H44: 2019-03-31 | I44: 2019-09-30 | J44: 31.03.19 - 30.09.19 (6 months) | K44: As per FFR framework agreement | L44: 2300 | M44: 2300 | N44: 24 | O44: 2300 | P44: 2300 | Q44: 24 | R44: 2300 | S44: 2300 | T44: 24 | U44: 5 | AD44: 0.4 | AE44: 1 | AF44: 1 | AG44: 0.4 | AH44: 1 | AI44: 0.4 | AJ44: 1 | AM44: E | AP44: EPFFR-1 "E" is an all or nothing bid, which is Mutually exclusive of A, B, C and D. High limited to 30 min
A45: 105.041 | B45: Reject | C45: 1.3 | D45: Energy Pool | E45: EPFFR-1 | F45: DNO connection | G45: Battery | H45: 2019-09-30 | I45: 2020-03-31 | J45: 30.09.19 - 31.03.20 (6 months) | K45: As per FFR framework agreement | L45: 2300 | M45: 1500 | N45: 16 | O45: 2300 | P45: 2300 | Q45: 24 | R45: 2300 | S45: 2300 | T45: 24 | U45: 5 | AD45: 0.4 | AE45: 1 | AF45: 1 | AG45: 0.4 | AH45: 1 | AI45: 0.4 | AJ45: 1 | AM45: E | AP45: EPFFR-1 "E" is an all or nothing bid, which is Mutually exclusive of A, B, C and D. High limited to 30 min
A46: 105.042 | B46: Reject | C46: 2 | D46: Energy Pool | E46: EPFFR-1 | F46: DNO connection | G46: Battery | H46: 2019-10-01 | I46: 2020-03-31 | J46: 01.10.19 - 31.03.20 (6 months) | K46: As per FFR framework agreement | L46: 1900 | M46: 2300 | N46: 4 | U46: 5 | AI46: 0.4 | AJ46: 1 | AM46: E | AP46: EPFFR-1 "E" is an all or nothing bid, which is Mutually exclusive of A, B, C and D. High limited to 30 min
A47: 105.043 | B47: Reject | C47: 1.3 | D47: Energy Pool | E47: EPFFR-1 | F47: DNO connection | G47: Battery | H47: 2020-03-31 | I47: 2020-09-30 | J47: 31.03.20 - 30.09.20 (6 months) | K47: As per FFR framework agreement | L47: 2300 | M47: 2300 | N47: 24 | O47: 2300 | P47: 2300 | Q47: 24 | R47: 2300 | S47: 2300 | T47: 24 | U47: 5 | AD47: 0.4 | AE47: 1 | AF47: 1 | AG47: 0.4 | AH47: 1 | AI47: 0.4 | AJ47: 1 | AM47: E | AP47: EPFFR-1 "E" is an all or nothing bid, which is Mutually exclusive of A, B, C and D. High limited to 30 min
A48: 105.044 | B48: Reject | C48: 1.3 | D48: Energy Pool | E48: EPFFR-1 | F48: DNO connection | G48: Battery | H48: 2020-09-30 | I48: 2021-03-31 | J48: 30.09.20 - 31.03.21 (6 months) | K48: As per FFR framework agreement | L48: 2300 | M48: 1500 | N48: 16 | O48: 2300 | P48: 2300 | Q48: 24 | R48: 2300 | S48: 2300 | T48: 24 | U48: 5 | AD48: 0.4 | AE48: 1 | AF48: 1 | AG48: 0.4 | AH48: 1 | AI48: 0.4 | AJ48: 1 | AM48: E | AP48: EPFFR-1 "E" is an all or nothing bid, which is Mutually exclusive of A, B, C and D. High limited to 30 min
A49: 105.045 | B49: Reject | C49: 2 | D49: Energy Pool | E49: EPFFR-1 | F49: DNO connection | G49: Battery | H49: 2020-10-01 | I49: 2021-03-31 | J49: 01.10.20 - 31.03.21 (6 months) | K49: As per FFR framework agreement | L49: 1900 | M49: 2300 | N49: 4 | U49: 5 | AI49: 0.4 | AJ49: 1 | AM49: E | AP49: EPFFR-1 "E" is an all or nothing bid, which is Mutually exclusive of A, B, C and D. High limited to 30 min
A50: 105.046 | B50: Reject | C50: 4 | D50: Energy Pool | E50: EPFFR-1 | F50: DNO connection | G50: Battery | H50: 2018-09-30 | I50: 2018-10-31 | J50: 30.09.18 - 31.10.18 (1 months) | K50: As per FFR framework agreement | L50: 2300 | M50: 700 | N50: 8 | O50: 2300 | P50: 700 | Q50: 8 | R50: 2300 | S50: 700 | T50: 8 | U50: 2 | AI50: 0.4 | AJ50: 1 | AK50: yes | AL50: 102.038 | AM50: F | AP50: EPFFR-1 "F" is mutually exclusive of G and H High limited to 30 min
A51: 105.047 | B51: Reject | C51: 4 | D51: Energy Pool | E51: EPFFR-1 | F51: DNO connection | G51: Battery | H51: 2018-09-30 | I51: 2018-12-31 | J51: 30.09.18 - 31.12.18 (3 months) | K51: As per FFR framework agreement | L51: 2300 | M51: 700 | N51: 8 | O51: 2300 | P51: 700 | Q51: 8 | R51: 2300 | S51: 700 | T51: 8 | U51: 2 | AI51: 0.4 | AJ51: 1 | AK51: yes | AL51: 102.038 | AM51: G | AP51: EPFFR-1 "G" is mutually exclusive of F and H High limited to 30 min
A52: 105.048 | B52: Accepted | C52: N/A | D52: Energy Pool | E52: EPFFR-1 | F52: DNO connection | G52: Battery | H52: 2018-09-30 | I52: 2019-03-31 | J52: 30.09.18 - 31.03.19 (6 months) | K52: As per FFR framework agreement | L52: 2300 | M52: 700 | N52: 8 | O52: 2300 | P52: 700 | Q52: 8 | R52: 2300 | S52: 700 | T52: 8 | U52: 2 | AI52: 0.4 | AJ52: 1 | AK52: yes | AL52: 102.038 | AM52: H | AP52: EPFFR-1 "H" is mutually exclusive of F and G High limited to 30 min
A53: 105.049 | B53: Reject | C53: 1.3 | D53: ENERGY STORE 1 LTD | E53: SLAM-01 | F53: DNO connection | G53: Battery | H53: 2019-09-30 | I53: 2020-09-30 | J53: 30.09.19 - 30.09.20 (12 months) | K53: As per FFR framework agreement | L53: 2300 | M53: 700 | N53: 8 | O53: 2300 | P53: 700 | Q53: 8 | R53: 2300 | S53: 700 | T53: 8 | U53: 53.85 | AD53: 2 | AE53: 5 | AF53: 5 | AG53: 2 | AH53: 5 | AI53: 2 | AJ53: 5 | AM53: A | AP53: Only one of A,B please
A54: 105.05 | B54: Reject | C54: 1.3 | D54: ENERGY STORE 1 LTD | E54: SLAM-01 | F54: DNO connection | G54: Battery | H54: 2019-09-30 | I54: 2020-09-30 | J54: 30.09.19 - 30.09.20 (12 months) | K54: As per FFR framework agreement | L54: 2300 | M54: 2300 | N54: 24 | O54: 2300 | P54: 2300 | Q54: 24 | R54: 2300 | S54: 2300 | T54: 24 | U54: 53.85 | AD54: 2 | AE54: 5 | AF54: 5 | AG54: 2 | AH54: 5 | AI54: 2 | AJ54: 5 | AM54: B | AP54: Only one of A,B please
A55: 105.051 | B55: Reject | C55: 1.3 | D55: ENERGY STORE 6 LTD | E55: YORK-01 | F55: DNO connection | G55: Battery | H55: 2020-03-31 | I55: 2021-03-31 | J55: 31.03.20 - 31.03.21 (12 months) | K55: As per FFR framework agreement | L55: 2300 | M55: 2300 | N55: 24 | O55: 2300 | P55: 2300 | Q55: 24 | R55: 2300 | S55: 2300 | T55: 24 | U55: 107.7 | AD55: 4 | AE55: 10 | AF55: 10 | AG55: 4 | AH55: 10 | AI55: 4 | AJ55: 10 | AM55: C | AP55: Only one of C,D please
A56: 105.052 | B56: Reject | C56: 1.3 | D56: ENERGY STORE 6 LTD | E56: YORK-01 | F56: DNO connection | G56: Battery | H56: 2020-03-31 | I56: 2021-03-31 | J56: 31.03.20 - 31.03.21 (12 months) | K56: As per FFR framework agreement | L56: 2300 | M56: 700 | N56: 8 | O56: 2300 | P56: 700 | Q56: 8 | R56: 2300 | S56: 700 | T56: 8 | U56: 107.7 | AD56: 4 | AE56: 10 | AF56: 10 | AG56: 4 | AH56: 10 | AI56: 4 | AJ56: 10 | AM56: D | AP56: Only one of C,D please
A57: 105.053 | B57: Reject | C57: 1.3 | D57: ENERGY STORE 4 LTD | E57: HULL-01 | F57: DNO connection | G57: Battery | H57: 2019-09-30 | I57: 2020-09-30 | J57: 30.09.19 - 30.09.20 (12 months) | K57: As per FFR framework agreement | L57: 2300 | M57: 2300 | N57: 24 | O57: 2300 | P57: 2300 | Q57: 24 | R57: 2300 | S57: 2300 | T57: 24 | U57: 64.62 | AD57: 2.4 | AE57: 6 | AF57: 6 | AG57: 2.4 | AH57: 6 | AI57: 2.4 | AJ57: 6 | AM57: E | AP57: Only one of E,F please
A58: 105.054 | B58: Reject | C58: 1.3 | D58: ENERGY STORE 4 LTD | E58: HULL-01 | F58: DNO connection | G58: Battery | H58: 2019-09-30 | I58: 2020-09-30 | J58: 30.09.19 - 30.09.20 (12 months) | K58: As per FFR framework agreement | L58: 2300 | M58: 700 | N58: 8 | O58: 2300 | P58: 700 | Q58: 8 | R58: 2300 | S58: 700 | T58: 8 | U58: 64.62 | AD58: 2.4 | AE58: 6 | AF58: 6 | AG58: 2.4 | AH58: 6 | AI58: 2.4 | AJ58: 6 | AM58: F | AP58: Only one of E,F please
A59: 105.055 | B59: Accepted | C59: N/A | D59: Electricity North West Ltd | E59: ENWL-1 | F59: DNO connection | G59: DSF: Load response | H59: 2018-09-30 | I59: 2018-10-31 | J59: 30.09.18 - 31.10.18 (1 months) | K59: As per FFR framework agreement | L59: 2300 | M59: 300 | O59: 2300 | P59: 300 | Q59: 4 | R59: 2300 | S59: 300 | T59: 4 | U59: 15 | AM59: A | AO59: 12 | AP59: All or nothing bids 105.001, 105.002 & 105.003
A60: 105.056 | B60: Accepted | C60: N/A | D60: Electricity North West Ltd | E60: ENWL-1 | F60: DNO connection | G60: DSF: Load response | H60: 2018-10-01 | I60: 2018-10-31 | J60: 01.10.18 - 31.10.18 (1 months) | K60: As per FFR framework agreement | L60: 300 | M60: 700 | N60: 4 | O60: 300 | P60: 700 | Q60: 4 | R60: 300 | S60: 700 | T60: 4 | U60: 13.75 | AM60: A | AO60: 11 | AP60: All or nothing bids 105.001, 105.002 & 105.003
A61: 105.057 | B61: Accepted | C61: N/A | D61: Electricity North West Ltd | E61: ENWL-1 | F61: DNO connection | G61: DSF: Load response | H61: 2018-10-01 | I61: 2018-10-31 | J61: 01.10.18 - 31.10.18 (1 months) | K61: As per FFR framework agreement | L61: 700 | M61: 1100 | N61: 4 | O61: 700 | P61: 1100 | Q61: 4 | R61: 700 | S61: 1100 | T61: 4 | U61: 21.6 | AM61: A | AO61: 12 | AP61: All or nothing bids 105.001, 105.002 & 105.003
A62: =A61+0.002 -> 105.059 | B62: Reject | C62: 1.2 | D62: First Hydro Company | E62: DINO-1 | F62: TO connection | G62: Hydro | H62: 2018-10-01 | I62: 2019-03-31 | J62: 01.10.18 - 31.03.19 (6 months) | K62: As per FFR framework agreement | L62: 1500 | M62: 1900 | N62: 4 | O62: 1500 | P62: 1900 | Q62: 4 | R62: 1500 | S62: 1900 | T62: 4 | U62: 2300 | V62: 0 | Y62: NO | Z62: 150 | AA62: 150 | AB62: 288 | AC62: 150 | AD62: 68 | AE62: 170 | AF62: 170 | AG62: 107 | AH62: 170 | AI62: 0 | AJ62: 0 | AM62: A
A63: 105.06 | B63: Reject | C63: 1.3 | D63: First Hydro Company | E63: DINO-2 | F63: TO connection | G63: Hydro | H63: 2019-04-01 | I63: 2020-03-31 | J63: 01.04.19 - 31.03.20 (12 months) | K63: As per FFR framework agreement | L63: 700 | M63: 2300 | N63: 16 | O63: 700 | P63: 2300 | Q63: 16 | R63: 700 | S63: 2300 | T63: 16 | U63: 2100 | V63: 0 | Y63: NO | Z63: 150 | AA63: 150 | AB63: 288 | AC63: 150 | AD63: 68 | AE63: 170 | AF63: 170 | AG63: 107 | AH63: 170 | AI63: 0 | AJ63: 0 | AM63: B | AP63: Tenders B and C are mutually exclusive
A64: 105.061 | B64: Reject | C64: 1.3 | D64: First Hydro Company | E64: DINO-2 | F64: TO connection | G64: Hydro | H64: 2019-04-01 | I64: 2020-03-31 | J64: 01.04.19 - 31.03.20 (12 months) | K64: As per FFR framework agreement | L64: 700 | M64: 1100 | N64: 4 | O64: 700 | P64: 1100 | Q64: 4 | R64: 700 | S64: 1100 | T64: 4 | U64: 2000 | V64: 0 | Y64: NO | Z64: 150 | AA64: 150 | AB64: 288 | AC64: 150 | AD64: 68 | AE64: 170 | AF64: 170 | AG64: 107 | AH64: 170 | AI64: 0 | AJ64: 0 | AM64: C | AP64: Tenders B and C are mutually exclusive
A65: 105.062 | B65: Reject | C65: 1.3 | D65: First Hydro Company | E65: DINO-2 | F65: TO connection | G65: Hydro | H65: 2019-04-01 | I65: 2020-03-31 | J65: 01.04.19 - 31.03.20 (12 months) | K65: As per FFR framework agreement | L65: 1500 | M65: 2300 | N65: 8 | O65: 1500 | P65: 2300 | Q65: 8 | R65: 1500 | S65: 2300 | T65: 8 | U65: 2000 | V65: 0 | Y65: NO | Z65: 150 | AA65: 150 | AB65: 288 | AC65: 150 | AD65: 68 | AE65: 170 | AF65: 170 | AG65: 107 | AH65: 170 | AI65: 0 | AJ65: 0 | AM65: C | AP65: Tenders B and C are mutually exclusive
A66: 105.063 | B66: Reject | C66: 1.3 | D66: First Renewable Alpha Limited | E66: TREGN-1 | F66: DNO connection | G66: Diesel | H66: 2019-03-31 | I66: 2019-09-30 | J66: 31.03.19 - 30.09.19 (6 months) | K66: As per FFR framework agreement | L66: 2300 | M66: 2300 | N66: 24 | O66: 2300 | P66: 2300 | Q66: 24 | R66: 2300 | S66: 2300 | T66: 24 | U66: 55.6 | AO66: 20
A67: 105.064 | B67: Reject | C67: 1.3 | D67: First Renewable Alpha Limited | E67: TREGN-1 | F67: DNO connection | G67: Diesel | H67: 2019-09-30 | I67: 2020-03-31 | J67: =IFERROR(TEXT(H67,"DD.MM.YY")&" - "&TEXT(I67,"DD.MM.YY")&" ("&DATEDIF(H67,I67+1,"m")&" months)","Tender End Date is Before Start Date") -> 30.09.19 - 31.03.20 (6 months) | K67: As per FFR framework agreement | L67: 2300 | M67: 2300 | N67: 24 | O67: 2300 | P67: 2300 | Q67: 24 | R67: 2300 | S67: 2300 | T67: 24 | U67: 60.6 | AO67: 20
A68: 105.065 | B68: Reject | C68: 1.3 | D68: First Renewable Alpha Limited | E68: TREGN-1 | F68: DNO connection | G68: Diesel | H68: 2020-03-31 | I68: 2020-09-30 | J68: =IFERROR(TEXT(H68,"DD.MM.YY")&" - "&TEXT(I68,"DD.MM.YY")&" ("&DATEDIF(H68,I68+1,"m")&" months)","Tender End Date is Before Start Date") -> 31.03.20 - 30.09.20 (6 months) | K68: As per FFR framework agreement | L68: 2300 | M68: 2300 | N68: 24 | O68: 2300 | P68: 2300 | Q68: 24 | R68: 2300 | S68: 2300 | T68: 24 | U68: 65.6 | AO68: 20
A69: 105.066 | B69: Reject | C69: 1.3 | D69: GridBeyond Limited | E69: GBND-1 | F69: DNO connection | G69: DSF: Load response | H69: 2018-09-30 | I69: 2018-10-31 | J69: =IFERROR(TEXT(H69,"DD.MM.YY")&" - "&TEXT(I69,"DD.MM.YY")&" ("&DATEDIF(H69,I69+1,"m")&" months)","Tender End Date is Before Start Date") -> 30.09.18 - 31.10.18 (1 months) | K69: As per FFR framework agreement | L69: 2300 | M69: 2300 | N69: 24 | O69: 2300 | P69: 2300 | Q69: 24 | R69: 2300 | S69: 2300 | T69: 24 | U69: 26.88 | V69: 0 | W69: - | X69: - | Y69: - | Z69: - | AA69: - | AB69: - | AC69: - | AD69: 1.2 | AE69: 3 | AF69: 3 | AG69: 1.2 | AH69: 3 | AI69: 0.4 | AJ69: 1
A70: 105.067 | B70: Reject | C70: 1.3 | D70: GridBeyond Limited | E70: GBND-2 | F70: DNO connection | G70: DSF: Load response | H70: 2019-03-31 | I70: 2019-09-30 | J70: =IFERROR(TEXT(H70,"DD.MM.YY")&" - "&TEXT(I70,"DD.MM.YY")&" ("&DATEDIF(H70,I70+1,"m")&" months)","Tender End Date is Before Start Date") -> 31.03.19 - 30.09.19 (6 months) | K70: As per FFR framework agreement | L70: 2300 | M70: 2300 | N70: 24 | O70: 2300 | P70: 2300 | Q70: 24 | R70: 2300 | S70: 2300 | T70: 24 | U70: 324 | V70: 0 | W70: - | X70: - | Y70: - | Z70: - | AA70: - | AB70: - | AC70: - | AD70: 8 | AE70: 20 | AF70: 20 | AG70: 8 | AH70: 20 | AI70: 3.2 | AJ70: 8
A71: 105.068 | B71: Reject | C71: 1.3 | D71: GridBeyond Limited | E71: GBND-2 | F71: DNO connection | G71: DSF: Load response | H71: 2019-09-30 | I71: 2020-03-31 | J71: 30.09.19 - 31.03.20 (6 months) | K71: As per FFR framework agreement | L71: 2300 | M71: 1500 | N71: 16 | O71: 2300 | P71: 1500 | Q71: 16 | R71: 2300 | S71: 1500 | T71: 16 | U71: 306 | V71: 0 | W71: - | X71: - | Y71: - | Z71: - | AA71: - | AB71: - | AC71: - | AD71: 12 | AE71: 30 | AF71: 30 | AG71: 12 | AH71: 30 | AI71: 4.8 | AJ71: 12 | AM71: A | AP71: Linked to 105.004
A72: 105.069 | B72: Reject | C72: 1.3 | D72: GridBeyond Limited | E72: GBND-2 | F72: DNO connection | G72: DSF: Load response | H72: 2019-10-01 | I72: 2020-03-31 | J72: 01.10.19 - 31.03.20 (6 months) | K72: As per FFR framework agreement | L72: 1900 | M72: 2300 | N72: 4 | O72: 1900 | P72: 2300 | Q72: 4 | R72: 1900 | S72: 2300 | T72: 4 | U72: 306 | V72: 0 | W72: - | X72: - | Y72: - | Z72: - | AA72: - | AB72: - | AC72: - | AD72: 12 | AE72: 30 | AF72: 30 | AG72: 12 | AH72: 30 | AI72: 4.8 | AJ72: 12 | AM72: A | AP72: Linked to 105.003
A73: 105.07 | B73: Reject | C73: 1.3 | D73: Hall Farm Energy Limited | E73: HLFRM-1 | F73: DNO connection | G73: Diesel | H73: 2019-03-31 | I73: 2019-09-30 | J73: 31.03.19 - 30.09.19 (6 months) | K73: As per FFR framework agreement | L73: 2300 | M73: 2300 | N73: 24 | O73: 2300 | P73: 2300 | Q73: 24 | R73: 2300 | S73: 2300 | T73: 24 | U73: 13.9 | AO73: 5
A74: =A73+0.001 -> 105.071 | B74: Reject | C74: 1.3 | D74: Hall Farm Energy Limited | E74: HLFRM-1 | F74: DNO connection | G74: Diesel | H74: 2019-09-30 | I74: 2020-03-31 | J74: 30.09.19 - 31.03.20 (6 months) | K74: As per FFR framework agreement | L74: 2300 | M74: 2300 | N74: 24 | O74: 2300 | P74: 2300 | Q74: 24 | R74: 2300 | S74: 2300 | T74: 24 | U74: 15.15 | AO74: 5
A75: 105.072 | B75: Reject | C75: 1.3 | D75: Keystone Power Ltd | E75: PLYM-FFR | F75: DNO connection | G75: Multiple Fuel Type | H75: 2018-10-01 | I75: 2018-10-31 | J75: 01.10.18 - 31.10.18 (1 months) | K75: As per FFR framework agreement | L75: 2300 | M75: 2300 | N75: 24 | O75: 2300 | P75: 2300 | Q75: 24 | R75: 2300 | S75: 2300 | T75: 24 | U75: 42 | V75: 0 | W75: 0 | AO75: 18 | AP75: will review - one genset down
A76: 105.073 | B76: Reject | C76: 1.3 | D76: Keystone Power Ltd | E76: PLYMD1 | F76: DNO connection | G76: Multiple Fuel Type | H76: 2019-03-31 | I76: 2021-03-31 | J76: 31.03.19 - 31.03.21 (24 months) | K76: As per FFR framework agreement | L76: 2300 | M76: 2300 | N76: 24 | O76: 2300 | P76: 2300 | Q76: 24 | R76: 2300 | S76: 2300 | T76: 24 | U76: 43.54 | V76: 0 | W76: 0 | AE76: 2 | AF76: 2 | AH76: 2 | AI76: 1 | AJ76: 2 | AP76: see LOI 17 Sept 2014 log 100908 - late!
A77: 105.074 | B77: Reject | C77: 1.3 | D77: KiWi Power Ltd | E77: KIWID-1 | F77: DNO connection | G77: DSF: Storage (onsite) | H77: 2018-09-30 | I77: 2019-03-31 | J77: 30.09.18 - 31.03.19 (6 months) | K77: As per FFR framework agreement | L77: 2300 | M77: 700 | O77: 2300 | P77: 700 | Q77: 8 | R77: 2300 | S77: 700 | T77: 8 | U77: 15.98 | AD77: 0.8 | AE77: 2 | AF77: 2 | AG77: 0.8 | AH77: 2 | AI77: 0.8 | AJ77: 2
A78: =A77+0.007 -> 105.081 | B78: Reject | C78: 1.3 | D78: KiWi Power Ltd | E78: KIWIDB-1 | F78: DNO connection | G78: DSF: Storage (onsite) | H78: 2020-03-31 | I78: 2020-09-30 | J78: 31.03.20 - 30.09.20 (6 months) | K78: As per FFR framework agreement | L78: 2300 | M78: 700 | N78: 8 | O78: 2300 | P78: 700 | Q78: 8 | R78: 2300 | S78: 700 | T78: 8 | U78: 44 | AD78: 1.6 | AE78: 4 | AF78: 4 | AG78: 1.6 | AH78: 4 | AI78: 1.6 | AJ78: 4
A79: =A78+0.001 -> 105.082 | B79: Reject | C79: 1.3 | D79: KiWi Power Ltd | E79: KIWIDB-1 | F79: DNO connection | G79: DSF: Storage (onsite) | H79: 2020-09-30 | I79: 2021-03-31 | J79: 30.09.20 - 31.03.21 (6 months) | K79: As per FFR framework agreement | L79: 2300 | M79: 700 | N79: 8 | O79: 2300 | P79: 700 | Q79: 8 | R79: 2300 | S79: 700 | T79: 8 | U79: 44 | AD79: 1.6 | AE79: 4 | AF79: 4 | AG79: 1.6 | AH79: 4 | AI79: 1.6 | AJ79: 4
A80: 105.083 | B80: Reject | C80: 1.3 | D80: KiWi Power Ltd | E80: KPBM-1 | F80: DNO connection | G80: DSF: Storage (onsite) | H80: 2019-03-31 | I80: 2019-09-30 | J80: 31.03.19 - 30.09.19 (6 months) | K80: As per FFR framework agreement | L80: 2300 | M80: 700 | N80: 8 | O80: 2300 | P80: 700 | Q80: 8 | R80: 2300 | S80: 700 | T80: 8 | U80: 153.78 | AD80: 8.8 | AE80: 22 | AF80: 22 | AG80: 8.8 | AH80: 22 | AI80: 8.8 | AJ80: 22
A81: =A80+0.002 -> 105.085 | B81: Reject | C81: 1.3 | D81: KiWi Power Ltd | E81: KPBM-1 | F81: DNO connection | G81: DSF: Storage (onsite) | H81: 2019-09-30 | I81: 2020-03-31 | J81: 30.09.19 - 31.03.20 (6 months) | K81: As per FFR framework agreement | L81: 2300 | M81: 700 | N81: 8 | O81: 2300 | P81: 700 | Q81: 8 | R81: 2300 | S81: 700 | T81: 8 | U81: 164.78 | AD81: 8.8 | AE81: 22 | AF81: 22 | AG81: 8.8 | AH81: 22 | AI81: 8.8 | AJ81: 22
A82: =A81+0.003 -> 105.088 | B82: Reject | C82: 1.3 | D82: KiWi Power Ltd | E82: KPBM-1 | F82: DNO connection | G82: DSF: Storage (onsite) | H82: 2020-03-31 | I82: 2020-09-30 | J82: 31.03.20 - 30.09.20 (6 months) | K82: As per FFR framework agreement | L82: 2300 | M82: 700 | N82: 8 | O82: 700 | P82: 2300 | Q82: 16 | R82: 700 | S82: 2300 | T82: 16 | U82: 230.56 | AD82: 8.8 | AE82: 22 | AF82: 22 | AG82: 8.8 | AH82: 22 | AI82: 8.8 | AJ82: 22
A83: =A82+0.002 -> 105.09 | B83: Reject | C83: 1.3 | D83: KiWi Power Ltd | E83: KPBM-1 | F83: DNO connection | G83: DSF: Storage (onsite) | H83: 2020-09-30 | I83: 2021-03-31 | J83: 30.09.20 - 31.03.21 (6 months) | K83: As per FFR framework agreement | L83: 2300 | M83: 700 | N83: 8 | O83: 2300 | P83: 700 | Q83: 8 | R83: 2300 | S83: 700 | T83: 8 | U83: 230.56 | AD83: 8.8 | AE83: 22 | AF83: 22 | AG83: 8.8 | AH83: 22 | AI83: 8.8 | AJ83: 22
A84: =A83+0.003 -> 105.093 | B84: Reject | C84: 1.3 | D84: Limejump Limited | E84: LJDYN-6 | F84: DNO connection | G84: DSF: Storage (for export) | H84: 2018-10-01 | I84: 2018-10-31 | J84: 01.10.18 - 31.10.18 (1 months) | K84: As per FFR framework agreement | L84: 700 | M84: 2300 | O84: 700 | P84: 2300 | Q84: 16 | R84: 700 | S84: 2300 | T84: 16 | U84: 144 | AD84: 8 | AE84: 20 | AF84: 20 | AG84: 8 | AH84: 20 | AI84: 8 | AJ84: 20 | AP84: H only for 30 mins. Only one of 105.001, A, B
A85: 105.094 | B85: Reject | C85: 1.2 | D85: Limejump Limited | E85: LJDYN-6 | F85: DNO connection | G85: DSF: Storage (for export) | H85: 2018-10-01 | I85: 2018-12-31 | J85: 01.10.18 - 31.12.18 (3 months) | K85: As per FFR framework agreement | L85: 700 | M85: 1500 | N85: 8 | O85: 700 | P85: 2300 | Q85: 16 | R85: 700 | S85: 2300 | T85: 16 | U85: 176 | AD85: 8 | AE85: 20 | AF85: 20 | AG85: 8 | AH85: 20 | AI85: 8 | AJ85: 20 | AM85: A | AP85: H only for 30 mins. Only one of 105.001, A, B
A86: 105.095 | B86: Reject | C86: 1.2 | D86: Limejump Limited | E86: LJDYN-6 | F86: DNO connection | G86: DSF: Storage (for export) | H86: 2018-10-01 | I86: 2018-12-31 | J86: 01.10.18 - 31.12.18 (3 months) | K86: As per FFR framework agreement | L86: 1900 | M86: 2300 | N86: 4 | U86: 176 | AD86: 8 | AE86: 20 | AF86: 20 | AG86: 8 | AH86: 20 | AI86: 8 | AJ86: 20 | AM86: A | AP86: H only for 30 mins. Only one of 105.001, A, B
A87: 105.096 | B87: Reject | C87: 1.2 | D87: Limejump Limited | E87: LJDYN-6 | F87: DNO connection | G87: DSF: Storage (for export) | H87: 2018-10-01 | I87: 2019-03-31 | J87: 01.10.18 - 31.03.19 (6 months) | K87: As per FFR framework agreement | L87: 700 | M87: 1500 | N87: 8 | O87: 700 | P87: 2300 | Q87: 16 | R87: 700 | S87: 2300 | T87: 16 | U87: 232 | AD87: 8 | AE87: 20 | AF87: 20 | AG87: 8 | AH87: 20 | AI87: 8 | AJ87: 20 | AM87: B | AP87: H only for 30 mins. Only one of 105.001, A, B
A88: 105.097 | B88: Reject | C88: 1.2 | D88: Limejump Limited | E88: LJDYN-6 | F88: DNO connection | G88: DSF: Storage (for export) | H88: 2018-10-01 | I88: 2019-03-31 | J88: 01.10.18 - 31.03.19 (6 months) | K88: As per FFR framework agreement | L88: 1900 | M88: 2300 | N88: 4 | U88: 232 | AD88: 8 | AE88: 20 | AF88: 20 | AG88: 8 | AH88: 20 | AI88: 8 | AJ88: 20 | AM88: B | AP88: H only for 30 mins. Only one of 105.001, A, B
A89: 105.098 | B89: Reject | C89: 1.3 | D89: Limejump Limited | E89: LJDYN-6 | F89: DNO connection | G89: DSF: Storage (for export) | H89: 2019-04-01 | I89: 2019-09-30 | J89: 01.04.19 - 30.09.19 (6 months) | K89: As per FFR framework agreement | L89: 700 | M89: 2300 | N89: 16 | O89: 700 | P89: 2300 | Q89: 16 | R89: 700 | S89: 2300 | T89: 16 | U89: 227 | AD89: 8 | AE89: 20 | AF89: 20 | AG89: 8 | AH89: 20 | AI89: 8 | AJ89: 20 | AP89: H only for 30 mins.
A90: 105.099 | B90: Reject | C90: 1.3 | D90: Limejump Limited | E90: LJDYN-6 | F90: DNO connection | G90: DSF: Storage (for export) | H90: 2019-10-01 | I90: 2020-03-31 | J90: 01.10.19 - 31.03.20 (6 months) | K90: As per FFR framework agreement | L90: 700 | M90: 1500 | N90: 8 | O90: 700 | P90: 2300 | Q90: 16 | R90: 700 | S90: 2300 | T90: 16 | U90: 218 | AD90: 8 | AE90: 20 | AF90: 20 | AG90: 8 | AH90: 20 | AI90: 8 | AJ90: 20 | AM90: C | AP90: H only for 30 mins.
A91: 105.1 | B91: Reject | C91: 1.3 | D91: Limejump Limited | E91: LJDYN-6 | F91: DNO connection | G91: DSF: Storage (for export) | H91: 2019-10-01 | I91: 2020-03-31 | J91: 01.10.19 - 31.03.20 (6 months) | K91: As per FFR framework agreement | L91: 1900 | M91: 2300 | N91: 4 | U91: 218 | AD91: 8 | AE91: 20 | AF91: 20 | AG91: 8 | AH91: 20 | AI91: 8 | AJ91: 20 | AM91: C | AP91: H only for 30 mins.
A92: 105.101 | B92: Reject | C92: 1.3 | D92: Limejump Limited | E92: LJDYN-6 | F92: DNO connection | G92: DSF: Storage (for export) | H92: 2020-04-01 | I92: 2020-09-30 | J92: 01.04.20 - 30.09.20 (6 months) | K92: As per FFR framework agreement | L92: 700 | M92: 2300 | N92: 16 | O92: 700 | P92: 2300 | Q92: 16 | R92: 700 | S92: 2300 | T92: 16 | U92: 217 | AD92: 8 | AE92: 20 | AF92: 20 | AG92: 8 | AH92: 20 | AI92: 8 | AJ92: 20 | AP92: H only for 30 mins.
A93: 105.102 | B93: Reject | C93: 1.3 | D93: Limejump Limited | E93: LJDYN-6 | F93: DNO connection | G93: DSF: Storage (for export) | H93: 2020-09-30 | I93: 2021-03-31 | J93: 30.09.20 - 31.03.21 (6 months) | K93: As per FFR framework agreement | L93: 2300 | M93: 700 | N93: 8 | O93: 2300 | P93: 700 | Q93: 8 | R93: 2300 | S93: 700 | T93: 8 | U93: 171 | AD93: 8 | AE93: 20 | AF93: 20 | AG93: 8 | AH93: 20 | AI93: 8 | AJ93: 20 | AP93: H only for 30 mins.
A94: 105.103 | B94: Reject | C94: 1.3 | D94: Limejump Limited | E94: LJDYN-6 | F94: DNO connection | G94: DSF: Storage (for export) | H94: 2020-10-01 | I94: 2021-03-31 | J94: 01.10.20 - 31.03.21 (6 months) | K94: As per FFR framework agreement | L94: 700 | M94: 1500 | N94: 8 | O94: 700 | P94: 2300 | Q94: 16 | R94: 700 | S94: 2300 | T94: 16 | U94: 205 | AD94: 8 | AE94: 20 | AF94: 20 | AG94: 8 | AH94: 20 | AI94: 8 | AJ94: 20 | AM94: D | AP94: H only for 30 mins.
A95: 105.104 | B95: Reject | C95: 1.3 | D95: Limejump Limited | E95: LJDYN-6 | F95: DNO connection | G95: DSF: Storage (for export) | H95: 2020-10-01 | I95: 2021-03-31 | J95: 01.10.20 - 31.03.21 (6 months) | K95: As per FFR framework agreement | L95: 1900 | M95: 2300 | N95: 4 | U95: 205 | AD95: 8 | AE95: 20 | AF95: 20 | AG95: 8 | AH95: 20 | AI95: 8 | AJ95: 20 | AM95: D | AP95: H only for 30 mins.
A96: 105.105 | B96: Reject | C96: 1.3 | D96: Limejump Virtual 8 | E96: LJDYV-1 | F96: DNO connection | G96: DSF: Storage (for export) | H96: 2019-03-31 | I96: 2019-09-30 | J96: 31.03.19 - 30.09.19 (6 months) | K96: As per FFR framework agreement | L96: 2300 | M96: 700 | N96: 8 | O96: 2300 | P96: 700 | Q96: 8 | R96: 2300 | S96: 700 | T96: 8 | U96: 69 | AD96: 3.2 | AE96: 8 | AF96: 8 | AG96: 3.2 | AH96: 8 | AI96: 3.2 | AJ96: 8 | AP96: H only for 30 mins.
A97: 105.106 | B97: Reject | C97: 1.3 | D97: Limejump Virtual 8 | E97: LJDYV-1 | F97: DNO connection | G97: DSF: Storage (for export) | H97: 2019-04-01 | I97: 2019-09-30 | J97: 01.04.19 - 30.09.19 (6 months) | K97: As per FFR framework agreement | L97: 700 | M97: 2300 | N97: 16 | O97: 700 | P97: 2300 | Q97: 16 | R97: 700 | S97: 2300 | T97: 16 | U97: 91 | AD97: 3.2 | AE97: 8 | AF97: 8 | AG97: 3.2 | AH97: 8 | AI97: 3.2 | AJ97: 8 | AP97: H only for 30 mins.
A98: 105.107 | B98: Reject | C98: 1.3 | D98: Limejump Virtual 8 | E98: LJDYV-1 | F98: DNO connection | G98: DSF: Storage (for export) | H98: 2019-09-30 | I98: 2020-03-31 | J98: 30.09.19 - 31.03.20 (6 months) | K98: As per FFR framework agreement | L98: 2300 | M98: 700 | N98: 8 | O98: 2300 | P98: 700 | Q98: 8 | R98: 2300 | S98: 700 | T98: 8 | U98: 69 | AD98: 3.2 | AE98: 8 | AF98: 8 | AG98: 3.2 | AH98: 8 | AI98: 3.2 | AJ98: 8 | AP98: H only for 30 mins.
A99: 105.108 | B99: Reject | C99: 1.3 | D99: Limejump Virtual 8 | E99: LJDYV-1 | F99: DNO connection | G99: DSF: Storage (for export) | H99: 2019-10-01 | I99: 2020-03-31 | J99: 01.10.19 - 31.03.20 (6 months) | K99: As per FFR framework agreement | L99: 700 | M99: 1500 | N99: 8 | O99: 700 | P99: 2300 | Q99: 16 | R99: 700 | S99: 2300 | T99: 16 | U99: 87 | AD99: 3.2 | AE99: 8 | AF99: 8 | AG99: 3.2 | AH99: 8 | AI99: 3.2 | AJ99: 8 | AM99: E | AP99: H only for 30 mins.
A100: 105.109 | B100: Reject | C100: 1.3 | D100: Limejump Virtual 8 | E100: LJDYV-1 | F100: DNO connection | G100: DSF: Storage (for export) | H100: 2019-10-01 | I100: 2020-03-31 | J100: 01.10.19 - 31.03.20 (6 months) | K100: As per FFR framework agreement | L100: 1900 | M100: 2300 | N100: 4 | U100: 87 | AD100: 3.2 | AE100: 8 | AF100: 8 | AG100: 3.2 | AH100: 8 | AI100: 3.2 | AJ100: 8 | AM100: E | AP100: H only for 30 mins.
A101: 105.11 | B101: Reject | C101: 1.3 | D101: Limejump Virtual 8 | E101: LJDYV-1 | F101: DNO connection | G101: DSF: Storage (for export) | H101: 2020-03-31 | I101: 2020-09-30 | J101: 31.03.20 - 30.09.20 (6 months) | K101: As per FFR framework agreement | L101: 2300 | M101: 700 | N101: 8 | O101: 2300 | P101: 700 | Q101: 8 | R101: 2300 | S101: 700 | T101: 8 | U101: 68 | AD101: 3.2 | AE101: 8 | AF101: 8 | AG101: 3.2 | AH101: 8 | AI101: 3.2 | AJ101: 8 | AP101: H only for 30 mins.
A102: 105.111 | B102: Reject | C102: 1.3 | D102: Limejump Virtual 8 | E102: LJDYV-1 | F102: DNO connection | G102: DSF: Storage (for export) | H102: 2020-04-01 | I102: 2020-09-30 | J102: 01.04.20 - 30.09.20 (6 months) | K102: As per FFR framework agreement | L102: 700 | M102: 2300 | N102: 16 | O102: 700 | P102: 2300 | Q102: 16 | R102: 700 | S102: 2300 | T102: 16 | U102: 87 | AD102: 3.2 | AE102: 8 | AF102: 8 | AG102: 3.2 | AH102: 8 | AI102: 3.2 | AJ102: 8 | AP102: H only for 30 mins.
A103: 105.112 | B103: Reject | C103: 1.3 | D103: Limejump Virtual 8 | E103: LJDYV-1 | F103: DNO connection | G103: DSF: Storage (for export) | H103: 2020-09-30 | I103: 2021-03-31 | J103: 30.09.20 - 31.03.21 (6 months) | K103: As per FFR framework agreement | L103: 2300 | M103: 700 | N103: 8 | O103: 2300 | P103: 700 | Q103: 8 | R103: 2300 | S103: 700 | T103: 8 | U103: 68 | AD103: 3.2 | AE103: 8 | AF103: 8 | AG103: 3.2 | AH103: 8 | AI103: 3.2 | AJ103: 8 | AP103: H only for 30 mins.
A104: 105.113 | B104: Reject | C104: 1.3 | D104: Limejump Virtual 8 | E104: LJDYV-1 | F104: DNO connection | G104: DSF: Storage (for export) | H104: 2020-10-01 | I104: 2021-03-31 | J104: 01.10.20 - 31.03.21 (6 months) | K104: As per FFR framework agreement | L104: 700 | M104: 1500 | N104: 8 | O104: 700 | P104: 2300 | Q104: 16 | R104: 700 | S104: 2300 | T104: 16 | U104: 82 | AD104: 3.2 | AE104: 8 | AF104: 8 | AG104: 3.2 | AH104: 8 | AI104: 3.2 | AJ104: 8 | AM104: F | AP104: H only for 30 mins.
A105: 105.114 | B105: Reject | C105: 1.3 | D105: Limejump Virtual 8 | E105: LJDYV-1 | F105: DNO connection | G105: DSF: Storage (for export) | H105: 2020-10-01 | I105: 2021-03-31 | J105: 01.10.20 - 31.03.21 (6 months) | K105: As per FFR framework agreement | L105: 1900 | M105: 2300 | N105: 4 | U105: 82 | AD105: 3.2 | AE105: 8 | AF105: 8 | AG105: 3.2 | AH105: 8 | AI105: 3.2 | AJ105: 8 | AM105: F | AP105: H only for 30 mins.
A106: 105.115 | B106: Reject | C106: 1.3 | D106: Limejump Virtual 8 | E106: LJDYV-2 | F106: DNO connection | G106: DSF: Storage (for export) | H106: 2019-03-31 | I106: 2019-09-30 | J106: 31.03.19 - 30.09.19 (6 months) | K106: As per FFR framework agreement | L106: 2300 | M106: 700 | N106: 8 | O106: 2300 | P106: 700 | Q106: 8 | R106: 2300 | S106: 700 | T106: 8 | U106: 87 | AD106: 4 | AE106: 10 | AF106: 10 | AG106: 4 | AH106: 10 | AI106: 4 | AJ106: 10 | AP106: H only for 30 mins.
A107: 105.116 | B107: Reject | C107: 1.3 | D107: Limejump Virtual 8 | E107: LJDYV-2 | F107: DNO connection | G107: DSF: Storage (for export) | H107: 2019-04-01 | I107: 2019-09-30 | J107: =IFERROR(TEXT(H107,"DD.MM.YY")&" - "&TEXT(I107,"DD.MM.YY")&" ("&DATEDIF(H107,I107+1,"m")&" months)","Tender End Date is Before Start Date") -> 01.04.19 - 30.09.19 (6 months) | K107: As per FFR framework agreement | L107: 700 | M107: 2300 | N107: 16 | O107: 700 | P107: 2300 | Q107: 16 | R107: 700 | S107: 2300 | T107: 16 | U107: 113 | AD107: 4 | AE107: 10 | AF107: 10 | AG107: 4 | AH107: 10 | AI107: 4 | AJ107: 10 | AP107: H only for 30 mins.
A108: 105.117 | B108: Reject | C108: 1.3 | D108: Limejump Virtual 8 | E108: LJDYV-2 | F108: DNO connection | G108: DSF: Storage (for export) | H108: 2019-09-30 | I108: 2020-03-31 | J108: =IFERROR(TEXT(H108,"DD.MM.YY")&" - "&TEXT(I108,"DD.MM.YY")&" ("&DATEDIF(H108,I108+1,"m")&" months)","Tender End Date is Before Start Date") -> 30.09.19 - 31.03.20 (6 months) | K108: As per FFR framework agreement | L108: 2300 | M108: 700 | N108: 8 | O108: 2300 | P108: 700 | Q108: 8 | R108: 2300 | S108: 700 | T108: 8 | U108: 87 | AD108: 4 | AE108: 10 | AF108: 10 | AG108: 4 | AH108: 10 | AI108: 4 | AJ108: 10 | AP108: H only for 30 mins.
A109: 105.118 | B109: Reject | C109: 1.3 | D109: Limejump Virtual 8 | E109: LJDYV-2 | F109: DNO connection | G109: DSF: Storage (for export) | H109: 2019-10-01 | I109: 2020-03-31 | J109: 01.10.19 - 31.03.20 (6 months) | K109: As per FFR framework agreement | L109: 700 | M109: 1500 | N109: 8 | O109: 700 | P109: 2300 | Q109: 16 | R109: 700 | S109: 2300 | T109: 16 | U109: 109 | AD109: 4 | AE109: 10 | AF109: 10 | AG109: 4 | AH109: 10 | AI109: 4 | AJ109: 10 | AM109: G | AP109: H only for 30 mins.
A110: 105.119 | B110: Reject | C110: 1.3 | D110: Limejump Virtual 8 | E110: LJDYV-2 | F110: DNO connection | G110: DSF: Storage (for export) | H110: 2019-10-01 | I110: 2020-03-31 | J110: 01.10.19 - 31.03.20 (6 months) | K110: As per FFR framework agreement | L110: 1900 | M110: 2300 | N110: 4 | U110: 109 | AD110: 4 | AE110: 10 | AF110: 10 | AG110: 4 | AH110: 10 | AI110: 4 | AJ110: 10 | AM110: G | AP110: H only for 30 mins.
A111: 105.12 | B111: Reject | C111: 1.3 | D111: Limejump Virtual 8 | E111: LJDYV-2 | F111: DNO connection | G111: DSF: Storage (for export) | H111: 2020-03-31 | I111: 2020-09-30 | J111: 31.03.20 - 30.09.20 (6 months) | K111: As per FFR framework agreement | L111: 2300 | M111: 700 | N111: 8 | O111: 2300 | P111: 700 | Q111: 8 | R111: 2300 | S111: 700 | T111: 8 | U111: 85 | AD111: 4 | AE111: 10 | AF111: 10 | AG111: 4 | AH111: 10 | AI111: 4 | AJ111: 10 | AP111: H only for 30 mins.
A112: 105.121 | B112: Reject | C112: 1.3 | D112: Limejump Virtual 8 | E112: LJDYV-2 | F112: DNO connection | G112: DSF: Storage (for export) | H112: 2020-04-01 | I112: 2020-09-30 | J112: 01.04.20 - 30.09.20 (6 months) | K112: As per FFR framework agreement | L112: 700 | M112: 2300 | N112: 16 | O112: 700 | P112: 2300 | Q112: 16 | R112: 700 | S112: 2300 | T112: 16 | U112: 109 | AD112: 4 | AE112: 10 | AF112: 10 | AG112: 4 | AH112: 10 | AI112: 4 | AJ112: 10 | AP112: H only for 30 mins.
A113: 105.122 | B113: Reject | C113: 1.3 | D113: Limejump Virtual 8 | E113: LJDYV-2 | F113: DNO connection | G113: DSF: Storage (for export) | H113: 2020-09-30 | I113: 2021-03-31 | J113: 30.09.20 - 31.03.21 (6 months) | K113: As per FFR framework agreement | L113: 2300 | M113: 700 | N113: 8 | O113: 2300 | P113: 700 | Q113: 8 | R113: 2300 | S113: 700 | T113: 8 | U113: 85 | AD113: 4 | AE113: 10 | AF113: 10 | AG113: 4 | AH113: 10 | AI113: 4 | AJ113: 10 | AP113: H only for 30 mins.
A114: 105.123 | B114: Reject | C114: 1.3 | D114: Limejump Virtual 8 | E114: LJDYV-2 | F114: DNO connection | G114: DSF: Storage (for export) | H114: 2020-10-01 | I114: 2021-03-31 | J114: 01.10.20 - 31.03.21 (6 months) | K114: As per FFR framework agreement | L114: 700 | M114: 1500 | N114: 8 | O114: 700 | P114: 2300 | Q114: 16 | R114: 700 | S114: 2300 | T114: 16 | U114: 103 | AD114: 4 | AE114: 10 | AF114: 10 | AG114: 4 | AH114: 10 | AI114: 4 | AJ114: 10 | AM114: H | AP114: H only for 30 mins.
A115: 105.124 | B115: Reject | C115: 1.3 | D115: Limejump Virtual 8 | E115: LJDYV-2 | F115: DNO connection | G115: DSF: Storage (for export) | H115: 2020-10-01 | I115: 2021-03-31 | J115: 01.10.20 - 31.03.21 (6 months) | K115: As per FFR framework agreement | L115: 1900 | M115: 2300 | N115: 4 | U115: 103 | AD115: 4 | AE115: 10 | AF115: 10 | AG115: 4 | AH115: 10 | AI115: 4 | AJ115: 10 | AM115: H | AP115: H only for 30 mins.
A116: 105.125 | B116: Reject | C116: 1.3 | D116: Limejump Limited | E116: LJDYQ-1 | F116: DNO connection | G116: DSF: Storage (for export) | H116: 2020-03-31 | I116: 2020-09-30 | J116: 31.03.20 - 30.09.20 (6 months) | K116: As per FFR framework agreement | L116: 2300 | M116: 700 | N116: 8 | O116: 2300 | P116: 700 | Q116: 8 | R116: 2300 | S116: 700 | T116: 8 | U116: 103 | AD116: 4.8 | AE116: 12 | AF116: 12 | AG116: 4.8 | AH116: 12 | AI116: 4.8 | AJ116: 12 | AP116: H only for 30 mins.
A117: 105.126 | B117: Reject | C117: 1.3 | D117: Limejump Limited | E117: LJDYQ-1 | F117: DNO connection | G117: DSF: Storage (for export) | H117: 2020-04-01 | I117: 2020-09-30 | J117: 01.04.20 - 30.09.20 (6 months) | K117: As per FFR framework agreement | L117: 700 | M117: 2300 | N117: 16 | O117: 700 | P117: 2300 | Q117: 16 | R117: 700 | S117: 2300 | T117: 16 | U117: 130 | AD117: 4.8 | AE117: 12 | AF117: 12 | AG117: 4.8 | AH117: 12 | AI117: 4.8 | AJ117: 12 | AP117: H only for 30 mins.
A118: 105.127 | B118: Reject | C118: 1.3 | D118: Limejump Limited | E118: LJDYQ-1 | F118: DNO connection | G118: DSF: Storage (for export) | H118: 2020-09-30 | I118: 2021-03-31 | J118: 30.09.20 - 31.03.21 (6 months) | K118: As per FFR framework agreement | L118: 2300 | M118: 700 | N118: 8 | O118: 2300 | P118: 700 | Q118: 8 | R118: 2300 | S118: 700 | T118: 8 | U118: 103 | AD118: 4.8 | AE118: 12 | AF118: 12 | AG118: 4.8 | AH118: 12 | AI118: 4.8 | AJ118: 12 | AP118: H only for 30 mins.
A119: 105.128 | B119: Reject | C119: 1.3 | D119: Limejump Limited | E119: LJDYQ-1 | F119: DNO connection | G119: DSF: Storage (for export) | H119: 2020-10-01 | I119: 2021-03-31 | J119: 01.10.20 - 31.03.21 (6 months) | K119: As per FFR framework agreement | L119: 700 | M119: 1500 | N119: 8 | O119: 700 | P119: 2300 | Q119: 16 | R119: 700 | S119: 2300 | T119: 16 | U119: 123 | AD119: 4.8 | AE119: 12 | AF119: 12 | AG119: 4.8 | AH119: 12 | AI119: 4.8 | AJ119: 12 | AM119: I | AP119: H only for 30 mins.
A120: 105.129 | B120: Reject | C120: 1.3 | D120: Limejump Limited | E120: LJDYQ-1 | F120: DNO connection | G120: DSF: Storage (for export) | H120: 2020-10-01 | I120: 2021-03-31 | J120: 01.10.20 - 31.03.21 (6 months) | K120: As per FFR framework agreement | L120: 1900 | M120: 2300 | N120: 4 | U120: 123 | AD120: 4.8 | AE120: 12 | AF120: 12 | AG120: 4.8 | AH120: 12 | AI120: 4.8 | AJ120: 12 | AM120: I | AP120: H only for 30 mins.
A121: 105.13 | B121: Accepted | C121: N/A | D121: Limejump Limited | E121: LJDYN-3 | F121: DNO connection | G121: DSF: Storage (for export) | H121: 2018-10-01 | I121: 2018-10-31 | J121: 01.10.18 - 31.10.18 (1 months) | K121: As per FFR framework agreement | L121: 700 | M121: 2300 | N121: 16 | O121: 700 | P121: 2300 | Q121: 16 | R121: 700 | S121: 2300 | T121: 16 | U121: 25.96 | AD121: 1.6 | AE121: 4 | AF121: 4 | AG121: 1.6 | AH121: 4 | AI121: 1.6 | AJ121: 4 | AP121: H only for 30 mins.
A122: 105.131 | B122: Reject | C122: 1.3 | D122: Limejump Limited | E122: LJDYN-3 | F122: DNO connection | G122: DSF: Storage (for export) | H122: 2020-03-31 | I122: 2020-09-30 | J122: 31.03.20 - 30.09.20 (6 months) | K122: As per FFR framework agreement | L122: 2300 | M122: 2300 | N122: 24 | O122: 2300 | P122: 2300 | Q122: 24 | R122: 2300 | S122: 2300 | T122: 24 | U122: 29.8 | AD122: 1.6 | AE122: 4 | AF122: 4 | AG122: 1.6 | AH122: 4 | AI122: 1.6 | AJ122: 4 | AP122: H only for 30 mins.
A123: 105.132 | B123: Reject | C123: 1.3 | D123: Limejump Virtual 10 | E123: LJDYX-1 | F123: DNO connection | G123: DSF: Storage (for export) | H123: 2020-03-31 | I123: 2020-09-30 | J123: 31.03.20 - 30.09.20 (6 months) | K123: As per FFR framework agreement | L123: 2300 | M123: 2300 | N123: 24 | O123: 2300 | P123: 2300 | Q123: 24 | R123: 2300 | S123: 2300 | T123: 24 | U123: 62.5 | AD123: 2 | AE123: 5 | AF123: 5 | AG123: 2 | AH123: 5 | AI123: 2 | AJ123: 5 | AP123: H only for 30 mins.
A124: 105.133 | B124: Reject | C124: 1.3 | D124: Limejump Virtual 10 | E124: LJDYX-1 | F124: DNO connection | G124: DSF: Storage (for export) | H124: 2020-09-30 | I124: 2021-03-31 | J124: 30.09.20 - 31.03.21 (6 months) | K124: As per FFR framework agreement | L124: 2300 | M124: 1500 | N124: 16 | O124: 2300 | P124: 2300 | Q124: 24 | R124: 2300 | S124: 2300 | T124: 24 | U124: 62.5 | AD124: 2 | AE124: 5 | AF124: 5 | AG124: 2 | AH124: 5 | AI124: 2 | AJ124: 5 | AM124: J | AP124: H only for 30 mins.
A125: 105.134 | B125: Reject | C125: 1.3 | D125: Limejump Virtual 10 | E125: LJDYX-1 | F125: DNO connection | G125: DSF: Storage (for export) | H125: 2020-10-01 | I125: 2021-03-31 | J125: 01.10.20 - 31.03.21 (6 months) | K125: As per FFR framework agreement | L125: 1900 | M125: 2300 | N125: 4 | U125: 62.5 | AD125: 2 | AE125: 5 | AF125: 5 | AG125: 2 | AH125: 5 | AI125: 2 | AJ125: 5 | AM125: J | AP125: H only for 30 mins.
A126: 105.135 | B126: Reject | C126: 1.3 | D126: Limejump Virtual 4 Ltd | E126: LJDYR-1 | F126: DNO connection | G126: DSF: Storage (for export) | H126: 2019-03-31 | I126: 2019-09-30 | J126: 31.03.19 - 30.09.19 (6 months) | K126: As per FFR framework agreement | L126: 2300 | M126: 700 | N126: 8 | O126: 2300 | P126: 700 | Q126: 8 | R126: 2300 | S126: 700 | T126: 8 | U126: 189.62 | AD126: 7.6 | AE126: 19 | AF126: 19 | AG126: 7.6 | AH126: 19 | AI126: 7.6 | AJ126: 19 | AP126: H only for 30 mins. Only one of 105.043, 105.044
A127: 105.136 | B127: Reject | C127: 1.3 | D127: Limejump Virtual 4 Ltd | E127: LJDYR-1 | F127: DNO connection | G127: DSF: Storage (for export) | H127: 2019-03-31 | I127: 2019-09-30 | J127: 31.03.19 - 30.09.19 (6 months) | K127: As per FFR framework agreement | L127: 2300 | M127: 2300 | N127: 24 | O127: 2300 | P127: 2300 | Q127: 24 | R127: 2300 | S127: 2300 | T127: 24 | U127: 189.62 | AD127: 7.6 | AE127: 19 | AF127: 19 | AG127: 7.6 | AH127: 19 | AI127: 7.6 | AJ127: 19 | AP127: H only for 30 mins. Only one of 105.043, 105.044
A128: 105.137 | B128: Reject | C128: 1.3 | D128: Limejump Virtual 4 Ltd | E128: LJDYR-1 | F128: DNO connection | G128: DSF: Storage (for export) | H128: 2019-09-30 | I128: 2020-03-31 | J128: 30.09.19 - 31.03.20 (6 months) | K128: As per FFR framework agreement | L128: 2300 | M128: 700 | N128: 8 | O128: 2300 | P128: 700 | Q128: 8 | R128: 2300 | S128: 700 | T128: 8 | U128: 189.62 | AD128: 7.6 | AE128: 19 | AF128: 19 | AG128: 7.6 | AH128: 19 | AI128: 7.6 | AJ128: 19 | AP128: H only for 30 mins. Only one of 105.045, K
A129: 105.138 | B129: Reject | C129: 1.3 | D129: Limejump Virtual 4 Ltd | E129: LJDYR-1 | F129: DNO connection | G129: DSF: Storage (for export) | H129: 2019-09-30 | I129: 2020-03-31 | J129: 30.09.19 - 31.03.20 (6 months) | K129: As per FFR framework agreement | L129: 2300 | M129: 1500 | N129: 16 | O129: 2300 | P129: 2300 | Q129: 24 | R129: 2300 | S129: 2300 | T129: 24 | U129: 179.55 | AD129: 7.6 | AE129: 19 | AF129: 19 | AG129: 7.6 | AH129: 19 | AI129: 7.6 | AJ129: 19 | AM129: K | AP129: H only for 30 mins. Only one of 105.045, K
A130: 105.139 | B130: Reject | C130: 1.3 | D130: Limejump Virtual 4 Ltd | E130: LJDYR-1 | F130: DNO connection | G130: DSF: Storage (for export) | H130: 2019-10-01 | I130: 2020-03-31 | J130: 01.10.19 - 31.03.20 (6 months) | K130: As per FFR framework agreement | L130: 1900 | M130: 2300 | N130: 4 | U130: 179.55 | AD130: 7.6 | AE130: 19 | AF130: 19 | AG130: 7.6 | AH130: 19 | AI130: 7.6 | AJ130: 19 | AM130: K | AP130: H only for 30 mins. Only one of 105.045, K
A131: 105.14 | B131: Reject | C131: 1.3 | D131: Limejump Virtual 4 Ltd | E131: LJDYR-1 | F131: DNO connection | G131: DSF: Storage (for export) | H131: 2020-03-31 | I131: 2020-09-30 | J131: 31.03.20 - 30.09.20 (6 months) | K131: As per FFR framework agreement | L131: 2300 | M131: 700 | N131: 8 | O131: 2300 | P131: 700 | Q131: 8 | R131: 2300 | S131: 700 | T131: 8 | U131: 160.55 | AD131: 7.6 | AE131: 19 | AF131: 19 | AG131: 7.6 | AH131: 19 | AI131: 7.6 | AJ131: 19 | AP131: H only for 30 mins. Only one of 105.048, 105.049
A132: 105.141 | B132: Reject | C132: 1.3 | D132: Limejump Virtual 4 Ltd | E132: LJDYR-1 | F132: DNO connection | G132: DSF: Storage (for export) | H132: 2020-03-31 | I132: 2020-09-30 | J132: 31.03.20 - 30.09.20 (6 months) | K132: As per FFR framework agreement | L132: 2300 | M132: 2300 | N132: 24 | O132: 2300 | P132: 2300 | Q132: 24 | R132: 2300 | S132: 2300 | T132: 24 | U132: 160.55 | AD132: 7.6 | AE132: 19 | AF132: 19 | AG132: 7.6 | AH132: 19 | AI132: 7.6 | AJ132: 19 | AP132: H only for 30 mins. Only one of 105.048, 105.049
A133: 105.142 | B133: Reject | C133: 1.3 | D133: Limejump Virtual 4 Ltd | E133: LJDYR-1 | F133: DNO connection | G133: DSF: Storage (for export) | H133: 2020-09-30 | I133: 2021-03-31 | J133: 30.09.20 - 31.03.21 (6 months) | K133: As per FFR framework agreement | L133: 2300 | M133: 700 | N133: 8 | O133: 2300 | P133: 700 | Q133: 8 | R133: 2300 | S133: 700 | T133: 8 | U133: 160.55 | AD133: 7.6 | AE133: 19 | AF133: 19 | AG133: 7.6 | AH133: 19 | AI133: 7.6 | AJ133: 19 | AP133: H only for 30 mins. Only one of 105.050, 105.051
A134: 105.143 | B134: Reject | C134: 1.3 | D134: Limejump Virtual 4 Ltd | E134: LJDYR-1 | F134: DNO connection | G134: DSF: Storage (for export) | H134: 2020-09-30 | I134: 2021-03-31 | J134: 30.09.20 - 31.03.21 (6 months) | K134: As per FFR framework agreement | L134: 2300 | M134: 2300 | N134: 24 | O134: 2300 | P134: 2300 | Q134: 24 | R134: 2300 | S134: 2300 | T134: 24 | U134: 160.55 | AD134: 7.6 | AE134: 19 | AF134: 19 | AG134: 7.6 | AH134: 19 | AI134: 7.6 | AJ134: 19 | AP134: H only for 30 mins. Only one of 105.050, 105.051
A135: 105.144 | B135: Reject | C135: 1.3 | D135: Limejump Virtual 7 Ltd | E135: LJDYU-1 | F135: DNO connection | G135: DSF: Storage (for export) | H135: 2019-03-31 | I135: 2019-09-30 | J135: 31.03.19 - 30.09.19 (6 months) | K135: As per FFR framework agreement | L135: 2300 | M135: 700 | N135: 8 | O135: 2300 | P135: 700 | Q135: 8 | R135: 2300 | S135: 700 | T135: 8 | U135: 136.8 | X135: 70 | AD135: 8 | AE135: 20 | AF135: 20 | AG135: 8 | AH135: 20 | AI135: 8 | AJ135: 20 | AP135: H only for 30 mins. Only one of 105.052, 105.053
A136: 105.145 | B136: Reject | C136: 1.3 | D136: Limejump Virtual 7 Ltd | E136: LJDYU-1 | F136: DNO connection | G136: DSF: Storage (for export) | H136: 2019-03-31 | I136: 2019-09-30 | J136: 31.03.19 - 30.09.19 (6 months) | K136: As per FFR framework agreement | L136: 2300 | M136: 2300 | N136: 24 | O136: 2300 | P136: 2300 | Q136: 24 | R136: 2300 | S136: 2300 | T136: 24 | U136: 136.8 | X136: 70 | AD136: 8 | AE136: 20 | AF136: 20 | AG136: 8 | AH136: 20 | AI136: 8 | AJ136: 20 | AP136: H only for 30 mins. Only one of 105.052, 105.053
A137: 105.146 | B137: Reject | C137: 1.3 | D137: Limejump Virtual 7 Ltd | E137: LJDYU-1 | F137: DNO connection | G137: DSF: Storage (for export) | H137: 2019-09-30 | I137: 2020-03-31 | J137: 30.09.19 - 31.03.20 (6 months) | K137: As per FFR framework agreement | L137: 2300 | M137: 700 | N137: 8 | O137: 2300 | P137: 700 | Q137: 8 | R137: 2300 | S137: 700 | T137: 8 | U137: 136.8 | X137: 70 | AD137: 8 | AE137: 20 | AF137: 20 | AG137: 8 | AH137: 20 | AI137: 8 | AJ137: 20 | AP137: H only for 30 mins. Only one of 105.054, L
A138: 105.147 | B138: Reject | C138: 1.3 | D138: Limejump Virtual 7 Ltd | E138: LJDYU-1 | F138: DNO connection | G138: DSF: Storage (for export) | H138: 2019-09-30 | I138: 2020-03-31 | J138: 30.09.19 - 31.03.20 (6 months) | K138: As per FFR framework agreement | L138: 2300 | M138: 1500 | N138: 16 | O138: 2300 | P138: 2300 | Q138: 24 | R138: 2300 | S138: 2300 | T138: 24 | U138: 136.8 | X138: 70 | AD138: 8 | AE138: 20 | AF138: 20 | AG138: 8 | AH138: 20 | AI138: 8 | AJ138: 20 | AM138: L | AP138: H only for 30 mins. Only one of 105.054, L
A139: 105.148 | B139: Reject | C139: 1.3 | D139: Limejump Virtual 7 Ltd | E139: LJDYU-1 | F139: DNO connection | G139: DSF: Storage (for export) | H139: 2019-10-01 | I139: 2020-03-31 | J139: 01.10.19 - 31.03.20 (6 months) | K139: As per FFR framework agreement | L139: 1900 | M139: 2300 | N139: 4 | U139: 136.8 | X139: 70 | AD139: 8 | AE139: 20 | AF139: 20 | AG139: 8 | AH139: 20 | AI139: 8 | AJ139: 20 | AM139: L | AP139: H only for 30 mins. Only one of 105.054, L
A140: 105.149 | B140: Accepted | C140: N/A | D140: Limejump Virtual 7 Ltd | E140: LJDYU-1 | F140: DNO connection | G140: DSF: Storage (for export) | H140: 2020-03-31 | I140: 2020-09-30 | J140: 31.03.20 - 30.09.20 (6 months) | K140: As per FFR framework agreement | L140: 2300 | M140: 700 | N140: 8 | O140: 2300 | P140: 700 | Q140: 8 | R140: 2300 | S140: 700 | T140: 8 | U140: 136.8 | X140: 70 | AD140: 8 | AE140: 20 | AF140: 20 | AG140: 8 | AH140: 20 | AI140: 8 | AJ140: 20 | AP140: H only for 30 mins. Only one of 105.057, 105.058
A141: 105.15 | B141: Reject | C141: 4 | D141: Limejump Virtual 7 Ltd | E141: LJDYU-1 | F141: DNO connection | G141: DSF: Storage (for export) | H141: 2020-03-31 | I141: 2020-09-30 | J141: 31.03.20 - 30.09.20 (6 months) | K141: As per FFR framework agreement | L141: 2300 | M141: 2300 | N141: 24 | O141: 2300 | P141: 2300 | Q141: 24 | R141: 2300 | S141: 2300 | T141: 24 | U141: 136.8 | X141: 70 | AD141: 8 | AE141: 20 | AF141: 20 | AG141: 8 | AH141: 20 | AI141: 8 | AJ141: 20 | AP141: H only for 30 mins. Only one of 105.057, 105.058
A142: 105.151 | B142: Reject | C142: 1.3 | D142: Limejump Virtual 7 Ltd | E142: LJDYU-1 | F142: DNO connection | G142: DSF: Storage (for export) | H142: 2020-09-30 | I142: 2021-03-31 | J142: 30.09.20 - 31.03.21 (6 months) | K142: As per FFR framework agreement | L142: 2300 | M142: 700 | N142: 8 | O142: 2300 | P142: 700 | Q142: 8 | R142: 2300 | S142: 700 | T142: 8 | U142: 136.8 | X142: 70 | AD142: 8 | AE142: 20 | AF142: 20 | AG142: 8 | AH142: 20 | AI142: 8 | AJ142: 20 | AP142: H only for 30 mins. Only one of 105.059, 105.060
A143: =A142+0.001 -> 105.152 | B143: Reject | C143: 1.3 | D143: Limejump Virtual 7 Ltd | E143: LJDYU-1 | F143: DNO connection | G143: DSF: Storage (for export) | H143: 2020-09-30 | I143: 2021-03-31 | J143: 30.09.20 - 31.03.21 (6 months) | K143: As per FFR framework agreement | L143: 2300 | M143: 2300 | N143: 24 | O143: 2300 | P143: 2300 | Q143: 24 | R143: 2300 | S143: 2300 | T143: 24 | U143: 136.8 | X143: 70 | AD143: 8 | AE143: 20 | AF143: 20 | AG143: 8 | AH143: 20 | AI143: 8 | AJ143: 20 | AP143: H only for 30 mins. Only one of 105.059, 105.060
A144: 105.153 | B144: Reject | C144: 1.3 | D144: Limejump Limited | E144: LJDYN-7 | F144: DNO connection | G144: DSF: Storage (for export) | H144: 2018-09-30 | I144: 2019-03-31 | J144: 30.09.18 - 31.03.19 (6 months) | K144: As per FFR framework agreement | L144: 2300 | M144: 700 | N144: 8 | O144: 2300 | P144: 700 | Q144: 8 | R144: 2300 | S144: 700 | T144: 8 | U144: 105 | AD144: 4 | AE144: 10 | AF144: 10 | AG144: 4 | AH144: 10 | AI144: 4 | AJ144: 10 | AP144: H only for 30 mins.
A145: 105.154 | B145: Reject | C145: 1.3 | D145: Limejump Limited | E145: LJDYN-7 | F145: DNO connection | G145: DSF: Storage (for export) | H145: 2019-03-31 | I145: 2019-09-30 | J145: 31.03.19 - 30.09.19 (6 months) | K145: As per FFR framework agreement | L145: 2300 | M145: 700 | N145: 8 | O145: 2300 | P145: 700 | Q145: 8 | R145: 2300 | S145: 700 | T145: 8 | U145: 99.9 | AD145: 4 | AE145: 10 | AF145: 10 | AG145: 4 | AH145: 10 | AI145: 4 | AJ145: 10 | AP145: H only for 30 mins. Only one of 105.062, 105.063
A146: 105.155 | B146: Reject | C146: 1.3 | D146: Limejump Limited | E146: LJDYN-7 | F146: DNO connection | G146: DSF: Storage (for export) | H146: 2019-03-31 | I146: 2019-09-30 | J146: 31.03.19 - 30.09.19 (6 months) | K146: As per FFR framework agreement | L146: 2300 | M146: 2300 | N146: 24 | O146: 2300 | P146: 2300 | Q146: 24 | R146: 2300 | S146: 2300 | T146: 24 | U146: 99.9 | AD146: 4 | AE146: 10 | AF146: 10 | AG146: 4 | AH146: 10 | AI146: 4 | AJ146: 10 | AP146: H only for 30 mins. Only one of 105.062, 105.063
A147: 105.156 | B147: Reject | C147: 1.3 | D147: Limejump Limited | E147: LJDYN-7 | F147: DNO connection | G147: DSF: Storage (for export) | H147: 2019-09-30 | I147: 2020-03-31 | J147: 30.09.19 - 31.03.20 (6 months) | K147: As per FFR framework agreement | L147: 2300 | M147: 700 | N147: 8 | O147: 2300 | P147: 700 | Q147: 8 | R147: 2300 | S147: 700 | T147: 8 | U147: 94.8 | AD147: 4 | AE147: 10 | AF147: 10 | AG147: 4 | AH147: 10 | AI147: 4 | AJ147: 10 | AP147: H only for 30 mins. Only one of 105.064, M
A148: 105.157 | B148: Reject | C148: 1.3 | D148: Limejump Limited | E148: LJDYN-7 | F148: DNO connection | G148: DSF: Storage (for export) | H148: 2019-09-30 | I148: 2020-03-31 | J148: 30.09.19 - 31.03.20 (6 months) | K148: As per FFR framework agreement | L148: 2300 | M148: 1500 | N148: 16 | O148: 2300 | P148: 2300 | Q148: 24 | R148: 2300 | S148: 2300 | T148: 24 | U148: 94.8 | AD148: 4 | AE148: 10 | AF148: 10 | AG148: 4 | AH148: 10 | AI148: 4 | AJ148: 10 | AM148: M | AP148: H only for 30 mins. Only one of 105.064, M
A149: 105.158 | B149: Reject | C149: 1.3 | D149: Limejump Limited | E149: LJDYN-7 | F149: DNO connection | G149: DSF: Storage (for export) | H149: 2019-10-01 | I149: 2020-03-31 | J149: 01.10.19 - 31.03.20 (6 months) | K149: As per FFR framework agreement | L149: 1900 | M149: 2300 | N149: 4 | U149: 94.8 | AD149: 4 | AE149: 10 | AF149: 10 | AG149: 4 | AH149: 10 | AI149: 4 | AJ149: 10 | AM149: M | AP149: H only for 30 mins. Only one of 105.064, M
A150: 105.159 | B150: Reject | C150: 1.3 | D150: Limejump Limited | E150: LJDYN-7 | F150: DNO connection | G150: DSF: Storage (for export) | H150: 2020-03-31 | I150: 2020-09-30 | J150: 31.03.20 - 30.09.20 (6 months) | K150: As per FFR framework agreement | L150: 2300 | M150: 700 | N150: 8 | O150: 2300 | P150: 700 | Q150: 8 | R150: 2300 | S150: 700 | T150: 8 | U150: 84.8 | AD150: 4 | AE150: 10 | AF150: 10 | AG150: 4 | AH150: 10 | AI150: 4 | AJ150: 10 | AP150: H only for 30 mins. Only one of 105.067, 105.068
A151: 105.16 | B151: Reject | C151: 1.3 | D151: Limejump Limited | E151: LJDYN-7 | F151: DNO connection | G151: DSF: Storage (for export) | H151: 2020-03-31 | I151: 2020-09-30 | J151: 31.03.20 - 30.09.20 (6 months) | K151: As per FFR framework agreement | L151: 2300 | M151: 2300 | N151: 24 | O151: 2300 | P151: 2300 | Q151: 24 | R151: 2300 | S151: 2300 | T151: 24 | U151: 84.8 | AD151: 4 | AE151: 10 | AF151: 10 | AG151: 4 | AH151: 10 | AI151: 4 | AJ151: 10 | AP151: H only for 30 mins. Only one of 105.067, 105.068
A152: 105.161 | B152: Reject | C152: 1.3 | D152: Limejump Limited | E152: LJDYN-7 | F152: DNO connection | G152: DSF: Storage (for export) | H152: 2020-09-30 | I152: 2021-03-31 | J152: 30.09.20 - 31.03.21 (6 months) | K152: As per FFR framework agreement | L152: 2300 | M152: 700 | N152: 8 | O152: 2300 | P152: 700 | Q152: 8 | R152: 2300 | S152: 700 | T152: 8 | U152: 84.8 | AD152: 4 | AE152: 10 | AF152: 10 | AG152: 4 | AH152: 10 | AI152: 4 | AJ152: 10 | AP152: H only for 30 mins. Only one of 105.069, 105.070
A153: 105.162 | B153: Reject | C153: 1.3 | D153: Limejump Limited | E153: LJDYN-7 | F153: DNO connection | G153: DSF: Storage (for export) | H153: 2020-09-30 | I153: 2021-03-31 | J153: 30.09.20 - 31.03.21 (6 months) | K153: As per FFR framework agreement | L153: 2300 | M153: 2300 | N153: 24 | O153: 2300 | P153: 2300 | Q153: 24 | R153: 2300 | S153: 2300 | T153: 24 | U153: 84.8 | AD153: 4 | AE153: 10 | AF153: 10 | AG153: 4 | AH153: 10 | AI153: 4 | AJ153: 10 | AP153: H only for 30 mins. Only one of 105.069, 105.070
A154: 105.163 | B154: Reject | C154: 1.3 | D154: Limejump Limited | E154: LJDYN-4 | F154: DNO connection | G154: DSF: Storage (for export) | H154: 2019-09-30 | I154: 2020-03-31 | J154: 30.09.19 - 31.03.20 (6 months) | K154: As per FFR framework agreement | L154: 2300 | M154: 700 | N154: 8 | O154: 2300 | P154: 700 | Q154: 8 | R154: 2300 | S154: 700 | T154: 8 | U154: 95 | AD154: 4 | AE154: 10 | AF154: 10 | AG154: 4 | AH154: 10 | AI154: 4 | AJ154: 10 | AP154: H only for 30 mins. Only one of 105.071, N
A155: 105.164 | B155: Reject | C155: 1.3 | D155: Limejump Limited | E155: LJDYN-4 | F155: DNO connection | G155: DSF: Storage (for export) | H155: 2019-09-30 | I155: 2020-03-31 | J155: 30.09.19 - 31.03.20 (6 months) | K155: As per FFR framework agreement | L155: 2300 | M155: 1500 | N155: 16 | O155: 2300 | P155: 2300 | Q155: 24 | R155: 2300 | S155: 2300 | T155: 24 | U155: 95 | AD155: 4 | AE155: 10 | AF155: 10 | AG155: 4 | AH155: 10 | AI155: 4 | AJ155: 10 | AM155: N | AP155: H only for 30 mins. Only one of 105.071, N
A156: 105.165 | B156: Reject | C156: 1.3 | D156: Limejump Limited | E156: LJDYN-4 | F156: DNO connection | G156: DSF: Storage (for export) | H156: 2019-10-01 | I156: 2020-03-31 | J156: 01.10.19 - 31.03.20 (6 months) | K156: As per FFR framework agreement | L156: 1900 | M156: 2300 | N156: 4 | U156: 95 | AD156: 4 | AE156: 10 | AF156: 10 | AG156: 4 | AH156: 10 | AI156: 4 | AJ156: 10 | AM156: N | AP156: H only for 30 mins. Only one of 105.071, N
A157: 105.166 | B157: Reject | C157: 1.3 | D157: Limejump Limited | E157: LJDYN-4 | F157: DNO connection | G157: DSF: Storage (for export) | H157: 2020-03-31 | I157: 2020-09-30 | J157: 31.03.20 - 30.09.20 (6 months) | K157: As per FFR framework agreement | L157: 2300 | M157: 700 | N157: 8 | O157: 2300 | P157: 700 | Q157: 8 | R157: 2300 | S157: 700 | T157: 8 | U157: 84.9 | AD157: 4 | AE157: 10 | AF157: 10 | AG157: 4 | AH157: 10 | AI157: 4 | AJ157: 10 | AP157: H only for 30 mins. Only one of 105.074, 105.075
A158: 105.167 | B158: Reject | C158: 1.3 | D158: Limejump Limited | E158: LJDYN-4 | F158: DNO connection | G158: DSF: Storage (for export) | H158: 2020-03-31 | I158: 2020-09-30 | J158: 31.03.20 - 30.09.20 (6 months) | K158: As per FFR framework agreement | L158: 2300 | M158: 2300 | N158: 24 | O158: 2300 | P158: 2300 | Q158: 24 | R158: 2300 | S158: 2300 | T158: 24 | U158: 84.9 | AD158: 4 | AE158: 10 | AF158: 10 | AG158: 4 | AH158: 10 | AI158: 4 | AJ158: 10 | AP158: H only for 30 mins. Only one of 105.074, 105.075
A159: 105.168 | B159: Reject | C159: 1.3 | D159: Limejump Limited | E159: LJDYN-4 | F159: DNO connection | G159: DSF: Storage (for export) | H159: 2020-09-30 | I159: 2021-03-31 | J159: 30.09.20 - 31.03.21 (6 months) | K159: As per FFR framework agreement | L159: 2300 | M159: 700 | N159: 8 | O159: 2300 | P159: 700 | Q159: 8 | R159: 2300 | S159: 700 | T159: 8 | U159: 84.9 | AD159: 4 | AE159: 10 | AF159: 10 | AG159: 4 | AH159: 10 | AI159: 4 | AJ159: 10 | AP159: H only for 30 mins. Only one of 105.076, 105.077
A160: 105.169 | B160: Reject | C160: 1.3 | D160: Limejump Limited | E160: LJDYN-4 | F160: DNO connection | G160: DSF: Storage (for export) | H160: 2020-09-30 | I160: 2021-03-31 | J160: 30.09.20 - 31.03.21 (6 months) | K160: As per FFR framework agreement | L160: 2300 | M160: 2300 | N160: 24 | O160: 2300 | P160: 2300 | Q160: 24 | R160: 2300 | S160: 2300 | T160: 24 | U160: 84.9 | AD160: 4 | AE160: 10 | AF160: 10 | AG160: 4 | AH160: 10 | AI160: 4 | AJ160: 10 | AP160: H only for 30 mins. Only one of 105.076, 105.077
A161: 105.17 | B161: Reject | C161: 1.3 | D161: Limejump Limited | E161: LJDYN-5 | F161: DNO connection | G161: DSF: Storage (for export) | H161: 2019-03-31 | I161: 2019-09-30 | J161: 31.03.19 - 30.09.19 (6 months) | K161: As per FFR framework agreement | L161: 2300 | M161: 700 | N161: 8 | O161: 2300 | P161: 700 | Q161: 8 | R161: 2300 | S161: 700 | T161: 8 | U161: 60 | AD161: 2.4 | AE161: 6 | AF161: 6 | AG161: 2.4 | AH161: 6 | AI161: 2.4 | AJ161: 6 | AP161: H only for 30 mins.
A162: 105.171 | B162: Reject | C162: 1.3 | D162: Limejump Limited | E162: LJDYN-5 | F162: DNO connection | G162: DSF: Storage (for export) | H162: 2019-09-30 | I162: 2020-03-31 | J162: 30.09.19 - 31.03.20 (6 months) | K162: As per FFR framework agreement | L162: 2300 | M162: 700 | N162: 8 | O162: 2300 | P162: 700 | Q162: 8 | R162: 2300 | S162: 700 | T162: 8 | U162: 57 | AD162: 2.4 | AE162: 6 | AF162: 6 | AG162: 2.4 | AH162: 6 | AI162: 2.4 | AJ162: 6 | AP162: H only for 30 mins.
A163: 105.172 | B163: Reject | C163: 1.3 | D163: Limejump Limited | E163: LJDYN-5 | F163: DNO connection | G163: DSF: Storage (for export) | H163: 2020-03-31 | I163: 2020-09-30 | J163: 31.03.20 - 30.09.20 (6 months) | K163: As per FFR framework agreement | L163: 2300 | M163: 700 | N163: 8 | O163: 2300 | P163: 700 | Q163: 8 | R163: 2300 | S163: 700 | T163: 8 | U163: 51 | AD163: 2.4 | AE163: 6 | AF163: 6 | AG163: 2.4 | AH163: 6 | AI163: 2.4 | AJ163: 6 | AP163: H only for 30 mins.
A164: 105.173 | B164: Reject | C164: 1.3 | D164: Limejump Limited | E164: LJDYN-5 | F164: DNO connection | G164: DSF: Storage (for export) | H164: 2020-09-30 | I164: 2021-03-31 | J164: 30.09.20 - 31.03.21 (6 months) | K164: As per FFR framework agreement | L164: 2300 | M164: 700 | N164: 8 | O164: 2300 | P164: 700 | Q164: 8 | R164: 2300 | S164: 700 | T164: 8 | U164: 51 | AD164: 2.4 | AE164: 6 | AF164: 6 | AG164: 2.4 | AH164: 6 | AI164: 2.4 | AJ164: 6 | AP164: H only for 30 mins.
A165: 105.174 | B165: Reject | C165: 1.3 | D165: Limejump Limited | E165: LJDYP-2 | F165: DNO connection | G165: DSF: Storage (for export) | H165: 2018-09-30 | I165: 2019-03-31 | J165: 30.09.18 - 31.03.19 (6 months) | K165: As per FFR framework agreement | L165: 2300 | M165: 700 | N165: 8 | O165: 2300 | P165: 700 | Q165: 8 | R165: 2300 | S165: 700 | T165: 8 | U165: 131.2 | AD165: 8 | AE165: 20 | AF165: 20 | AG165: 8 | AH165: 20 | AI165: 8 | AJ165: 20 | AP165: H only for 30 mins. Only one of 105.082, 105.083, 105.089, 105.090
A166: 105.175 | B166: Reject | C166: 1.2 | D166: Limejump Limited | E166: LJDYP-2 | F166: DNO connection | G166: DSF: Storage (for export) | H166: 2018-09-30 | I166: 2019-03-31 | J166: 30.09.18 - 31.03.19 (6 months) | K166: As per FFR framework agreement | L166: 2300 | M166: 1500 | N166: 16 | O166: 2300 | P166: 2300 | Q166: 24 | R166: 2300 | S166: 2300 | T166: 24 | U166: 131.2 | AD166: 8 | AE166: 20 | AF166: 20 | AG166: 8 | AH166: 20 | AI166: 8 | AJ166: 20 | AP166: H only for 30 mins. Only one of 105.082, 105.083, 105.089, 105.090
A167: 105.176 | B167: Reject | C167: 1.3 | D167: Limejump Limited | E167: LJDYP-2 | F167: DNO connection | G167: DSF: Storage (for export) | H167: 2019-03-31 | I167: 2019-09-30 | J167: 31.03.19 - 30.09.19 (6 months) | K167: As per FFR framework agreement | L167: 2300 | M167: 2300 | N167: 24 | O167: 2300 | P167: 2300 | Q167: 24 | R167: 2300 | S167: 2300 | T167: 24 | U167: 131.2 | AD167: 8 | AE167: 20 | AF167: 20 | AG167: 8 | AH167: 20 | AI167: 8 | AJ167: 20 | AP167: H only for 30 mins. Mutually exclusive of 105.088
A168: 105.177 | B168: Reject | C168: 1.3 | D168: Limejump Limited | E168: LJDYP-2 | F168: DNO connection | G168: DSF: Storage (for export) | H168: 2019-09-30 | I168: 2020-03-31 | J168: 30.09.19 - 31.03.20 (6 months) | K168: As per FFR framework agreement | L168: 2300 | M168: 700 | N168: 8 | O168: 2300 | P168: 700 | Q168: 8 | R168: 2300 | S168: 700 | T168: 8 | U168: 131.2 | AD168: 8 | AE168: 20 | AF168: 20 | AG168: 8 | AH168: 20 | AI168: 8 | AJ168: 20 | AP168: H only for 30 mins. Mutually exclusive of 105.088
A169: 105.178 | B169: Reject | C169: 1.3 | D169: Limejump Limited | E169: LJDYP-2 | F169: DNO connection | G169: DSF: Storage (for export) | H169: 2020-03-31 | I169: 2020-09-30 | J169: 31.03.20 - 30.09.20 (6 months) | K169: As per FFR framework agreement | L169: 2300 | M169: 2300 | N169: 24 | O169: 2300 | P169: 2300 | Q169: 24 | R169: 2300 | S169: 2300 | T169: 24 | U169: 131.2 | AD169: 8 | AE169: 20 | AF169: 20 | AG169: 8 | AH169: 20 | AI169: 8 | AJ169: 20 | AP169: H only for 30 mins. Mutually exclusive of 105.088
A170: 105.179 | B170: Accepted | C170: N/A | D170: Limejump Limited | E170: LJDYP-2 | F170: DNO connection | G170: DSF: Storage (for export) | H170: 2020-09-30 | I170: 2021-03-31 | J170: 30.09.20 - 31.03.21 (6 months) | K170: As per FFR framework agreement | L170: 2300 | M170: 700 | N170: 8 | O170: 2300 | P170: 700 | Q170: 8 | R170: 2300 | S170: 700 | T170: 8 | U170: 131.2 | AD170: 8 | AE170: 20 | AF170: 20 | AG170: 8 | AH170: 20 | AI170: 8 | AJ170: 20 | AP170: H only for 30 mins. Mutually exclusive of 105.088
A171: 105.18 | B171: Reject | C171: 4 | D171: Limejump Limited | E171: LJDYP-2 | F171: DNO connection | G171: DSF: Storage (for export) | H171: 2019-03-31 | I171: 2021-03-31 | J171: 31.03.19 - 31.03.21 (24 months) | K171: As per FFR framework agreement | L171: 2300 | M171: 2300 | N171: 24 | O171: 2300 | P171: 2300 | Q171: 24 | R171: 2300 | S171: 2300 | T171: 24 | U171: 123.8 | AD171: 8 | AE171: 20 | AF171: 20 | AG171: 8 | AH171: 20 | AI171: 8 | AJ171: 20 | AP171: H only for 30 mins. Mutually exclusive of 105.084, 105.085, 105.086, 105.087
A172: 105.181 | B172: Accepted | C172: N/A | D172: Limejump Limited | E172: LJDYP-2 | F172: DNO connection | G172: DSF: Storage (for export) | H172: 2018-09-30 | I172: 2018-12-31 | J172: =IFERROR(TEXT(H172,"DD.MM.YY")&" - "&TEXT(I172,"DD.MM.YY")&" ("&DATEDIF(H172,I172+1,"m")&" months)","Tender End Date is Before Start Date") -> 30.09.18 - 31.12.18 (3 months) | K172: As per FFR framework agreement | L172: 2300 | M172: 700 | N172: 8 | O172: 2300 | P172: 700 | Q172: 8 | R172: 2300 | S172: 700 | T172: 8 | U172: 131.2 | AD172: 8 | AE172: 20 | AF172: 20 | AG172: 8 | AH172: 20 | AI172: 8 | AJ172: 20 | AP172: H only for 30 mins. Only one of 105.082, 105.083, 105.089, 105.090
A173: 105.182 | B173: Reject | C173: 4 | D173: Limejump Limited | E173: LJDYP-2 | F173: DNO connection | G173: DSF: Storage (for export) | H173: 2018-09-30 | I173: 2018-12-31 | J173: 30.09.18 - 31.12.18 (3 months) | K173: As per FFR framework agreement | L173: 2300 | M173: 1500 | N173: 16 | O173: 2300 | P173: 2300 | Q173: 24 | R173: 2300 | S173: 2300 | T173: 24 | U173: 131.2 | AD173: 8 | AE173: 20 | AF173: 20 | AG173: 8 | AH173: 20 | AI173: 8 | AJ173: 20 | AP173: H only for 30 mins. Only one of 105.082, 105.083, 105.089, 105.090
A174: 105.183 | B174: Reject | C174: 1.3 | D174: Limejump Limited | E174: LJDYP-4 | F174: DNO connection | G174: DSF: Storage (for export) | H174: 2019-03-31 | I174: 2019-09-30 | J174: 31.03.19 - 30.09.19 (6 months) | K174: As per FFR framework agreement | L174: 2300 | M174: 2300 | N174: 24 | O174: 2300 | P174: 2300 | Q174: 24 | R174: 2300 | S174: 2300 | T174: 24 | U174: 25.88 | AD174: 1.6 | AE174: 4 | AF174: 4 | AG174: 1.6 | AH174: 4 | AI174: 1.6 | AJ174: 4 | AP174: H only for 30 mins. Mutually exclusive of 105.095
A175: 105.184 | B175: Reject | C175: 1.3 | D175: Limejump Limited | E175: LJDYP-4 | F175: DNO connection | G175: DSF: Storage (for export) | H175: 2019-09-30 | I175: 2020-03-31 | J175: 30.09.19 - 31.03.20 (6 months) | K175: As per FFR framework agreement | L175: 2300 | M175: 700 | N175: 8 | O175: 2300 | P175: 700 | Q175: 8 | R175: 2300 | S175: 700 | T175: 8 | U175: 25.88 | AD175: 1.6 | AE175: 4 | AF175: 4 | AG175: 1.6 | AH175: 4 | AI175: 1.6 | AJ175: 4 | AP175: H only for 30 mins. Mutually exclusive of 105.095
A176: 105.185 | B176: Reject | C176: 1.3 | D176: Limejump Limited | E176: LJDYP-4 | F176: DNO connection | G176: DSF: Storage (for export) | H176: 2020-03-31 | I176: 2020-09-30 | J176: 31.03.20 - 30.09.20 (6 months) | K176: As per FFR framework agreement | L176: 2300 | M176: 2300 | N176: 24 | O176: 2300 | P176: 2300 | Q176: 24 | R176: 2300 | S176: 2300 | T176: 24 | U176: 25.88 | AD176: 1.6 | AE176: 4 | AF176: 4 | AG176: 1.6 | AH176: 4 | AI176: 1.6 | AJ176: 4 | AP176: H only for 30 mins. Mutually exclusive of 105.095
A177: 105.186 | B177: Accepted | C177: N/A | D177: Limejump Limited | E177: LJDYP-4 | F177: DNO connection | G177: DSF: Storage (for export) | H177: 2020-09-30 | I177: 2021-03-31 | J177: 30.09.20 - 31.03.21 (6 months) | K177: As per FFR framework agreement | L177: 2300 | M177: 700 | N177: 8 | O177: 2300 | P177: 700 | Q177: 8 | R177: 2300 | S177: 700 | T177: 8 | U177: 25.88 | AD177: 1.6 | AE177: 4 | AF177: 4 | AG177: 1.6 | AH177: 4 | AI177: 1.6 | AJ177: 4 | AP177: H only for 30 mins. Mutually exclusive of 105.095
A178: 105.187 | B178: Reject | C178: 4 | D178: Limejump Limited | E178: LJDYP-4 | F178: DNO connection | G178: DSF: Storage (for export) | H178: 2019-03-31 | I178: 2021-03-31 | J178: 31.03.19 - 31.03.21 (24 months) | K178: As per FFR framework agreement | L178: 2300 | M178: 2300 | N178: 24 | O178: 2300 | P178: 2300 | Q178: 24 | R178: 2300 | S178: 2300 | T178: 24 | U178: 25.08 | AD178: 1.6 | AE178: 4 | AF178: 4 | AG178: 1.6 | AH178: 4 | AI178: 1.6 | AJ178: 4 | AP178: H only for 30 mins. Mutually exclusive of 105.091, 105.092, 105.093, 105.094
A179: 105.188 | B179: Reject | C179: 1.3 | D179: Limejump Virtual 10 | E179: LJDYX-2 | F179: DNO connection | G179: DSF: Storage (for export) | H179: 2019-03-31 | I179: 2019-09-30 | J179: 31.03.19 - 30.09.19 (6 months) | K179: As per FFR framework agreement | L179: 2300 | M179: 2300 | N179: 24 | O179: 2300 | P179: 2300 | Q179: 24 | R179: 2300 | S179: 2300 | T179: 24 | U179: 87.9 | AD179: 3.2 | AE179: 8 | AF179: 8 | AG179: 4 | AH179: 10 | AI179: 3.2 | AJ179: 8 | AP179: H only for 30 mins.
A180: 105.189 | B180: Reject | C180: 1.3 | D180: Limejump Virtual 10 | E180: LJDYX-2 | F180: DNO connection | G180: DSF: Storage (for export) | H180: 2019-09-30 | I180: 2020-03-31 | J180: 30.09.19 - 31.03.20 (6 months) | K180: As per FFR framework agreement | L180: 2300 | M180: 1500 | N180: 16 | O180: 2300 | P180: 2300 | Q180: 24 | R180: 2300 | S180: 2300 | T180: 24 | U180: 87.9 | AD180: 3.2 | AE180: 8 | AF180: 8 | AG180: 4 | AH180: 10 | AI180: 3.2 | AJ180: 8 | AM180: O | AP180: H only for 30 mins.
A181: 105.19 | B181: Reject | C181: 1.3 | D181: Limejump Virtual 10 | E181: LJDYX-2 | F181: DNO connection | G181: DSF: Storage (for export) | H181: 2019-10-01 | I181: 2020-03-31 | J181: 01.10.19 - 31.03.20 (6 months) | K181: As per FFR framework agreement | L181: 1900 | M181: 2300 | N181: 4 | U181: 87.9 | AD181: 3.2 | AE181: 8 | AF181: 8 | AG181: 4 | AH181: 10 | AI181: 3.2 | AJ181: 8 | AM181: O | AP181: H only for 30 mins.
A182: 105.191 | B182: Reject | C182: 1.3 | D182: Limejump Virtual 10 | E182: LJDYX-2 | F182: DNO connection | G182: DSF: Storage (for export) | H182: 2020-03-31 | I182: 2020-09-30 | J182: 31.03.20 - 30.09.20 (6 months) | K182: As per FFR framework agreement | L182: 2300 | M182: 2300 | N182: 24 | O182: 2300 | P182: 2300 | Q182: 24 | R182: 2300 | S182: 2300 | T182: 24 | U182: 87.9 | AD182: 3.2 | AE182: 8 | AF182: 8 | AG182: 4 | AH182: 10 | AI182: 3.2 | AJ182: 8 | AP182: H only for 30 mins.
A183: 105.192 | B183: Reject | C183: 1.3 | D183: Limejump Virtual 10 | E183: LJDYX-2 | F183: DNO connection | G183: DSF: Storage (for export) | H183: 2020-09-30 | I183: 2021-03-31 | J183: 30.09.20 - 31.03.21 (6 months) | K183: As per FFR framework agreement | L183: 2300 | M183: 1500 | N183: 16 | O183: 2300 | P183: 2300 | Q183: 24 | R183: 2300 | S183: 2300 | T183: 24 | U183: 87.9 | AD183: 3.2 | AE183: 8 | AF183: 8 | AG183: 4 | AH183: 10 | AI183: 3.2 | AJ183: 8 | AM183: P | AP183: H only for 30 mins.
A184: 105.193 | B184: Reject | C184: 1.3 | D184: Limejump Virtual 10 | E184: LJDYX-2 | F184: DNO connection | G184: DSF: Storage (for export) | H184: 2020-10-01 | I184: 2021-03-31 | J184: 01.10.20 - 31.03.21 (6 months) | K184: As per FFR framework agreement | L184: 1900 | M184: 2300 | N184: 4 | U184: 87.9 | AD184: 3.2 | AE184: 8 | AF184: 8 | AG184: 4 | AH184: 10 | AI184: 3.2 | AJ184: 8 | AM184: P | AP184: H only for 30 mins.
A185: 105.194 | B185: Reject | C185: 4 | D185: Limejump Virtual 9 | E185: LJDYWA-1 | F185: DNO connection | G185: DSF: Storage (for export) | H185: 2018-09-30 | I185: 2018-10-31 | J185: 30.09.18 - 31.10.18 (1 months) | K185: As per FFR framework agreement | L185: 2300 | M185: 700 | N185: 8 | O185: 2300 | P185: 700 | Q185: 8 | R185: 2300 | S185: 700 | T185: 8 | U185: 105 | AD185: 2.8 | AE185: 7 | AF185: 7 | AG185: 2.8 | AH185: 7 | AI185: 2.8 | AJ185: 7 | AP185: H only for 30 mins. Only one of 105.102, 105.103
A186: 105.195 | B186: Accepted | C186: N/A | D186: Limejump Virtual 9 | E186: LJDYWA-1 | F186: DNO connection | G186: DSF: Storage (for export) | H186: 2018-09-30 | I186: 2018-10-31 | J186: 30.09.18 - 31.10.18 (1 months) | K186: As per FFR framework agreement | L186: 2300 | M186: 2300 | N186: 24 | O186: 2300 | P186: 2300 | Q186: 24 | R186: 2300 | S186: 2300 | T186: 24 | U186: 35 | AD186: 2.8 | AE186: 7 | AF186: 7 | AG186: 2.8 | AH186: 7 | AI186: 2.8 | AJ186: 7 | AP186: H only for 30 mins. Only one of 105.102, 105.103
A187: 105.196 | B187: Accepted | C187: N/A | D187: Limejump Limited | E187: LJFFR-1 | F187: DNO connection | G187: Multiple Fuel Type | H187: 2018-09-30 | I187: 2018-10-31 | J187: 30.09.18 - 31.10.18 (1 months) | K187: As per FFR framework agreement | L187: 2300 | M187: 2300 | N187: 24 | O187: 2300 | P187: 2300 | Q187: 24 | R187: 2300 | S187: 2300 | T187: 24 | U187: 28.35 | AO187: 15
A188: 105.197 | B188: Reject | C188: 4 | D188: Limejump Limited | E188: LJFFR-1 | F188: DNO connection | G188: Multiple Fuel Type | H188: 2018-09-30 | I188: 2018-12-31 | J188: 30.09.18 - 31.12.18 (3 months) | K188: As per FFR framework agreement | L188: 2300 | M188: 1500 | N188: 16 | O188: 2300 | P188: 2300 | Q188: 24 | R188: 2300 | S188: 2300 | T188: 24 | U188: 28.5 | AO188: 15
A189: 105.198 | B189: Reject | C189: 4 | D189: Limejump Limited | E189: LJFFR-1 | F189: DNO connection | G189: Multiple Fuel Type | H189: 2018-09-30 | I189: 2018-12-31 | J189: 30.09.18 - 31.12.18 (3 months) | K189: As per FFR framework agreement | L189: 1900 | M189: 2300 | N189: 4 | U189: 28.5 | AO189: 15
A190: =A189+0.001 -> 105.199 | B190: Reject | C190: 1.3 | D190: Limejump Limited | E190: LJFFR-1 | F190: DNO connection | G190: Multiple Fuel Type | H190: 2019-03-31 | I190: 2019-09-30 | J190: 31.03.19 - 30.09.19 (6 months) | K190: As per FFR framework agreement | L190: 2300 | M190: 2300 | N190: 24 | O190: 2300 | P190: 2300 | Q190: 24 | R190: 2300 | S190: 2300 | T190: 24 | U190: 37.5 | AO190: 15
A191: 105.2 | B191: Reject | C191: 1.3 | D191: Limejump Limited | E191: LJFFR-1 | F191: DNO connection | G191: Multiple Fuel Type | H191: 2019-09-30 | I191: 2020-03-31 | J191: 30.09.19 - 31.03.20 (6 months) | K191: As per FFR framework agreement | L191: 2300 | M191: 1500 | N191: 16 | O191: 2300 | P191: 2300 | Q191: 24 | R191: 2300 | S191: 2300 | T191: 24 | U191: 37.5 | AO191: 15
A192: 105.201 | B192: Accepted | C192: N/A | D192: Limejump Limited | E192: LJFFR-1 | F192: DNO connection | G192: Multiple Fuel Type | H192: 2019-10-01 | I192: 2020-03-31 | J192: 01.10.19 - 31.03.20 (6 months) | K192: As per FFR framework agreement | L192: 1900 | M192: 2300 | N192: 4 | U192: 37.5 | AO192: 15
A193: 105.202 | B193: Reject | C193: 1.3 | D193: Limejump Limited | E193: LJFFR-1 | F193: DNO connection | G193: Multiple Fuel Type | H193: 2020-03-31 | I193: 2020-09-30 | J193: 31.03.20 - 30.09.20 (6 months) | K193: As per FFR framework agreement | L193: 2300 | M193: 2300 | N193: 24 | O193: 2300 | P193: 2300 | Q193: 24 | R193: 2300 | S193: 2300 | T193: 24 | U193: 37.5 | AO193: 15
A194: 105.203 | B194: Reject | C194: 1.3 | D194: Limejump Limited | E194: LJFFR-1 | F194: DNO connection | G194: Multiple Fuel Type | H194: 2020-09-30 | I194: 2021-03-31 | J194: 30.09.20 - 31.03.21 (6 months) | K194: As per FFR framework agreement | L194: 2300 | M194: 1500 | N194: 16 | O194: 2300 | P194: 2300 | Q194: 24 | R194: 2300 | S194: 2300 | T194: 24 | U194: 37.5 | AO194: 15
A195: 105.204 | B195: Accepted | C195: N/A | D195: Limejump Limited | E195: LJFFR-1 | F195: DNO connection | G195: Multiple Fuel Type | H195: 2020-10-01 | I195: 2021-03-31 | J195: 01.10.20 - 31.03.21 (6 months) | K195: As per FFR framework agreement | L195: 1900 | M195: 2300 | N195: 4 | U195: 37.5 | AO195: 15
A196: 105.205 | B196: Reject | C196: 1.3 | D196: Limejump Limited | E196: LJDYN-1 | F196: DNO connection | G196: DSF: Storage (for export) | H196: 2018-10-01 | I196: 2018-10-31 | J196: 01.10.18 - 31.10.18 (1 months) | K196: As per FFR framework agreement | L196: 700 | M196: 2300 | N196: 16 | O196: 700 | P196: 2300 | Q196: 16 | R196: 700 | S196: 2300 | T196: 16 | U196: 44.4 | AD196: 2.4 | AE196: 6 | AF196: 6 | AG196: 2.4 | AH196: 6 | AI196: 2.4 | AJ196: 6 | AP196: H only for 30 mins.
A197: 105.206 | B197: Reject | C197: 4 | D197: NG1 Power Limited | E197: NG1FFR-1 | F197: DNO connection | G197: Diesel | H197: 2018-09-30 | I197: 2018-12-31 | J197: 30.09.18 - 31.12.18 (3 months) | K197: As per FFR framework agreement | L197: 2300 | M197: 1500 | N197: 16 | O197: 2300 | P197: 1500 | Q197: 16 | R197: 2300 | S197: 1500 | T197: 16 | U197: 32 | AN197: 0 | AO197: 20
A198: 105.207 | B198: Accepted | C198: N/A | D198: NG1 Power Limited | E198: NG1FFR-1 | F198: DNO connection | G198: Diesel | H198: 2018-09-30 | I198: 2018-10-31 | J198: 30.09.18 - 31.10.18 (1 months) | K198: As per FFR framework agreement | L198: 2300 | M198: 2300 | N198: 24 | O198: 2300 | P198: 2300 | Q198: 24 | R198: 2300 | S198: 2300 | T198: 24 | U198: 30 | AN198: 0 | AO198: 20
A199: =A198+0.004 -> 105.211 | B199: Reject | C199: 1.3 | D199: Equinicity | E199: NKEQ-2 | F199: DNO connection | G199: hybrid | H199: 2019-09-30 | I199: 2021-03-31 | J199: 30.09.19 - 31.03.21 (18 months) | K199: As per FFR framework agreement | L199: 2300 | M199: 2300 | N199: 24 | O199: 2300 | P199: 2300 | Q199: 24 | R199: 2300 | S199: 2300 | T199: 24 | U199: 340 | AD199: 17.2 | AE199: 43 | AF199: 43 | AG199: 17.2 | AH199: 43 | AI199: 17.2 | AJ199: 43
A200: 105.212 | B200: Reject | C200: 1.3 | D200: Equinicity | E200: NKEQ-2 | F200: DNO connection | G200: hybrid | H200: 2019-09-30 | I200: 2021-03-31 | J200: 30.09.19 - 31.03.21 (18 months) | K200: As per FFR framework agreement | L200: 2300 | M200: 700 | N200: 8 | O200: 2300 | P200: 700 | Q200: 8 | R200: 2300 | S200: 700 | T200: 8 | U200: 310 | AD200: 17.2 | AE200: 43 | AF200: 43 | AG200: 17.2 | AH200: 43 | AI200: 17.2 | AJ200: 43 | AM200: B
A201: 105.213 | B201: Reject | C201: 1.3 | D201: Equinicity | E201: NKEQ-2 | F201: DNO connection | G201: hybrid | H201: 2019-10-01 | I201: 2021-03-31 | J201: 01.10.19 - 31.03.21 (18 months) | K201: As per FFR framework agreement | L201: 1100 | M201: 1500 | N201: 4 | O201: 1100 | P201: 1500 | Q201: 4 | R201: 1100 | S201: 1500 | T201: 4 | U201: 310 | AD201: 17.2 | AE201: 43 | AF201: 43 | AG201: 17.2 | AH201: 43 | AI201: 17.2 | AJ201: 43 | AM201: B
A202: 105.214 | B202: Reject | C202: 1.3 | D202: Equinicity | E202: NKEQ-2 | F202: DNO connection | G202: hybrid | H202: 2019-10-01 | I202: 2021-03-31 | J202: 01.10.19 - 31.03.21 (18 months) | K202: As per FFR framework agreement | L202: 1900 | M202: 2300 | N202: 4 | O202: 1900 | P202: 2300 | Q202: 4 | R202: 1900 | S202: 2300 | T202: 4 | U202: 310 | AD202: 17.2 | AE202: 43 | AF202: 43 | AG202: 17.2 | AH202: 43 | AI202: 17.2 | AJ202: 43 | AM202: B
... 215 more rows

Sheet Auto (hidden)
A1: Path to the Tenders Folder | B1: S:\OandT\EBandET\Contracts\Services & Projects\Firm Frequency Response Service\FFR spreadshhet test\Ariba Received
A2: Tender Round | B2: 97

Sheet Calendar (hidden)
A1: May-18 | B1: Jun-18 | C1: Jul-18 | D1: Aug-18 | E1: Sep-18 | F1: Oct-18 | G1: Nov-18 | H1: Dec-18 | I1: Jan-19 | J1: Feb-19 | K1: Mar-19 | L1: Apr-19 | M1: May-19 | N1: Jun-19 | O1: Jul-19 | P1: Aug-19 | Q1: Sep-19 | R1: Oct-19 | S1: Nov-19 | T1: Dec-19 | U1: Jan-20 | V1: Feb-20 | W1: Mar-20 | X1: Apr-20 | Y1: May-20 | Z1: Jun-20 | AA1: Jul-20 | AB1: Aug-20 | AC1: Sep-20 | AD1: Oct-20 | AE1: Nov-20 | AF1: Dec-20 | AG1: Jan-21 | AH1: Feb-21 | AI1: Mar-21 | AJ1: Apr-21 | AK1: May-21 | AL1: Jun-21
A2: 101 | B2: 102 | C2: 103 | D2: 104 | E2: 105 | F2: 106 | G2: 107 | H2: 108 | I2: 109 | J2: 110 | K2: 111 | L2: 112 | M2: 113 | N2: 114 | O2: 115 | P2: 116 | Q2: 117 | R2: 118 | S2: 119 | T2: 120 | U2: 121 | V2: 122 | W2: 123 | X2: 124 | Y2: 125 | Z2: 126 | AA2: 127 | AB2: 128 | AC2: 129 | AD2: 130 | AE2: 131 | AF2: 132 | AG2: 133 | AH2: 134 | AI2: 135 | AJ2: 136 | AK2: 137 | AL2: 138
A3: 2018-06-01 | B3: 2018-07-01 | C3: 2018-08-01 | D3: 2018-09-01 | E3: 2018-10-01 | F3: 2018-11-01 | G3: 2018-12-01 | H3: 2019-01-01 | I3: 2019-02-01 | J3: 2019-03-01 | K3: 2019-04-01 | L3: 2019-05-01 | M3: 2019-06-01 | N3: 2019-07-01 | O3: 2019-08-01 | P3: 2019-09-01 | Q3: 2019-10-01 | R3: 2019-11-01 | S3: 2019-12-01 | T3: 2020-01-01 | U3: 2020-02-01 | V3: 2020-03-01 | W3: 2020-04-01 | X3: 2020-05-01 | Y3: 2020-06-01 | Z3: 2020-07-01 | AA3: 2020-08-01 | AB3: 2020-09-01 | AC3: 2020-10-01 | AD3: 2020-11-01 | AE3: 2020-12-01 | AF3: 2021-01-01 | AG3: 2021-02-01 | AH3: 2021-03-01 | AI3: 2021-04-01 | AJ3: 2021-05-01 | AK3: 2021-06-01 | AL3: 2021-07-01
B4: 2018-07-01 | E4: 2018-10-01 | H4: 2019-01-01 | K4: 2019-04-01 | N4: 2019-07-01 | Q4: 2019-10-01 | T4: 2020-01-01 | W4: 2020-04-01 | Z4: 2020-07-01 | AC4: 2020-10-01 | AF4: 2021-01-01 | AI4: 2021-04-01 | AL4: 2021-07-01
B5: 2018-08-01 | E5: 2018-11-01 | H5: 2019-02-01 | K5: 2019-05-01 | N5: 2019-08-01 | Q5: 2019-11-01 | T5: 2020-02-01 | W5: 2020-05-01 | Z5: 2020-08-01 | AC5: 2020-11-01 | AF5: 2021-02-01 | AI5: 2021-05-01 | AL5: 2021-08-01
B6: 2018-09-01 | E6: 2018-12-01 | H6: 2019-03-01 | K6: 2019-06-01 | N6: 2019-09-01 | Q6: 2019-12-01 | T6: 2020-03-01 | W6: 2020-06-01 | Z6: 2020-09-01 | AC6: 2020-12-01 | AF6: 2021-03-01 | AI6: 2021-06-01 | AL6: 2021-09-01
B7: 2018-10-01 | E7: 2018-10-01 | H7: 2019-04-01 | K7: 2019-04-01 | N7: 2019-10-01 | Q7: 2019-10-01 | T7: 2020-04-01 | W7: 2020-04-01 | Z7: 2020-10-01 | AC7: 2020-10-01 | AF7: 2021-04-01 | AI7: 2021-04-01 | AL7: 2021-10-01
B8: 2018-11-01 | E8: 2018-11-01 | H8: 2019-05-01 | K8: 2019-05-01 | N8: 2019-11-01 | Q8: 2019-11-01 | T8: 2020-05-01 | W8: 2020-05-01 | Z8: 2020-11-01 | AC8: 2020-11-01 | AF8: 2021-05-01 | AI8: 2021-05-01 | AL8: 2021-11-01
B9: 2018-12-01 | E9: 2018-12-01 | H9: 2019-06-01 | K9: 2019-06-01 | N9: 2019-12-01 | Q9: 2019-12-01 | T9: 2020-06-01 | W9: 2020-06-01 | Z9: 2020-12-01 | AC9: 2020-12-01 | AF9: 2021-06-01 | AI9: 2021-06-01 | AL9: 2021-12-01
B10: 2019-01-01 | E10: 2019-01-01 | H10: 2019-07-01 | K10: 2019-07-01 | N10: 2020-01-01 | Q10: 2020-01-01 | T10: 2020-07-01 | W10: 2020-07-01 | Z10: 2021-01-01 | AC10: 2021-01-01 | AF10: 2021-07-01 | AI10: 2021-07-01 | AL10: 2022-01-01
B11: 2019-02-01 | E11: 2019-02-01 | H11: 2019-08-01 | K11: 2019-08-01 | N11: 2020-02-01 | Q11: 2020-02-01 | T11: 2020-08-01 | W11: 2020-08-01 | Z11: 2021-02-01 | AC11: 2021-02-01 | AF11: 2021-08-01 | AI11: 2021-08-01 | AL11: 2022-02-01
B12: 2019-03-01 | E12: 2019-03-01 | H12: 2019-09-01 | K12: 2019-09-01 | N12: 2020-03-01 | Q12: 2020-03-01 | T12: 2020-09-01 | W12: 2020-09-01 | Z12: 2021-03-01 | AC12: 2021-03-01 | AF12: 2021-09-01 | AI12: 2021-09-01 | AL12: 2022-03-01
B13: 2019-04-01 | E13: 2019-04-01 | H13: 2019-10-01 | K13: 2019-10-01 | N13: 2020-04-01 | Q13: 2020-04-01 | T13: 2020-10-01 | W13: 2020-10-01 | Z13: 2021-04-01 | AC13: 2021-04-01 | AF13: 2021-10-01 | AI13: 2021-10-01 | AL13: 2022-04-01
B14: 2019-05-01 | E14: 2019-05-01 | H14: 2019-11-01 | K14: 2019-11-01 | N14: 2020-05-01 | Q14: 2020-05-01 | T14: 2020-11-01 | W14: 2020-11-01 | Z14: 2021-05-01 | AC14: 2021-05-01 | AF14: 2021-11-01 | AI14: 2021-11-01 | AL14: 2022-05-01
B15: 2019-06-01 | E15: 2019-06-01 | H15: 2019-12-01 | K15: 2019-12-01 | N15: 2020-06-01 | Q15: 2020-06-01 | T15: 2020-12-01 | W15: 2020-12-01 | Z15: 2021-06-01 | AC15: 2021-06-01 | AF15: 2021-12-01 | AI15: 2021-12-01 | AL15: 2022-06-01
B16: 2019-07-01 | E16: 2019-07-01 | H16: 2020-01-01 | K16: 2020-01-01 | N16: 2020-07-01 | Q16: 2020-07-01 | T16: 2021-01-01 | W16: 2021-01-01 | Z16: 2021-07-01 | AC16: 2021-07-01 | AF16: 2022-01-01 | AI16: 2022-01-01 | AL16: 2022-07-01
B17: 2019-08-01 | E17: 2019-08-01 | H17: 2020-02-01 | K17: 2020-02-01 | N17: 2020-08-01 | Q17: 2020-08-01 | T17: 2021-02-01 | W17: 2021-02-01 | Z17: 2021-08-01 | AC17: 2021-08-01 | AF17: 2022-02-01 | AI17: 2022-02-01 | AL17: 2022-08-01
B18: 2019-09-01 | E18: 2019-09-01 | H18: 2020-03-01 | K18: 2020-03-01 | N18: 2020-09-01 | Q18: 2020-09-01 | T18: 2021-03-01 | W18: 2021-03-01 | Z18: 2021-09-01 | AC18: 2021-09-01 | AF18: 2022-03-01 | AI18: 2022-03-01 | AL18: 2022-09-01
B19: 2019-10-01 | E19: 2019-10-01 | H19: 2020-04-01 | K19: 2020-04-01 | N19: 2020-10-01 | Q19: 2020-10-01 | T19: 2021-04-01 | W19: 2021-04-01 | Z19: 2021-10-01 | AC19: 2021-10-01 | AF19: 2022-04-01 | AI19: 2022-04-01 | AL19: 2022-10-01
B20: 2019-11-01 | E20: 2019-11-01 | H20: 2020-05-01 | K20: 2020-05-01 | N20: 2020-11-01 | Q20: 2020-11-01 | T20: 2021-05-01 | W20: 2021-05-01 | Z20: 2021-11-01 | AC20: 2021-11-01 | AF20: 2022-05-01 | AI20: 2022-05-01 | AL20: 2022-11-01
B21: 2019-12-01 | E21: 2019-12-01 | H21: 2020-06-01 | K21: 2020-06-01 | N21: 2020-12-01 | Q21: 2020-12-01 | T21: 2021-06-01 | W21: 2021-06-01 | Z21: 2021-12-01 | AC21: 2021-12-01 | AF21: 2022-06-01 | AI21: 2022-06-01 | AL21: 2022-12-01
B22: 2020-01-01 | E22: 2020-01-01 | H22: 2020-07-01 | K22: 2020-07-01 | N22: 2021-01-01 | Q22: 2021-01-01 | T22: 2021-07-01 | W22: 2021-07-01 | Z22: 2022-01-01 | AC22: 2022-01-01 | AF22: 2022-07-01 | AI22: 2022-07-01 | AL22: 2023-01-01
B23: 2020-02-01 | E23: 2020-02-01 | H23: 2020-08-01 | K23: 2020-08-01 | N23: 2021-02-01 | Q23: 2021-02-01 | T23: 2021-08-01 | W23: 2021-08-01 | Z23: 2022-02-01 | AC23: 2022-02-01 | AF23: 2022-08-01 | AI23: 2022-08-01 | AL23: 2023-02-01
B24: 2020-03-01 | E24: 2020-03-01 | H24: 2020-09-01 | K24: 2020-09-01 | N24: 2021-03-01 | Q24: 2021-03-01 | T24: 2021-09-01 | W24: 2021-09-01 | Z24: 2022-03-01 | AC24: 2022-03-01 | AF24: 2022-09-01 | AI24: 2022-09-01 | AL24: 2023-03-01
B25: 2020-04-01 | E25: 2020-04-01 | H25: 2020-10-01 | K25: 2020-10-01 | N25: 2021-04-01 | Q25: 2021-04-01 | T25: 2021-10-01 | W25: 2021-10-01 | Z25: 2022-04-01 | AC25: 2022-04-01 | AF25: 2022-10-01 | AI25: 2022-10-01 | AL25: 2023-04-01
B26: 2020-05-01 | E26: 2020-05-01 | H26: 2020-11-01 | K26: 2020-11-01 | N26: 2021-05-01 | Q26: 2021-05-01 | T26: 2021-11-01 | W26: 2021-11-01 | Z26: 2022-05-01 | AC26: 2022-05-01 | AF26: 2022-11-01 | AI26: 2022-11-01 | AL26: 2023-05-01
B27: 2020-06-01 | E27: 2020-06-01 | H27: 2020-12-01 | K27: 2020-12-01 | N27: 2021-06-01 | Q27: 2021-06-01 | T27: 2021-12-01 | W27: 2021-12-01 | Z27: 2022-06-01 | AC27: 2022-06-01 | AF27: 2022-12-01 | AI27: 2022-12-01 | AL27: 2023-06-01
B28: 2020-07-01 | E28: 2020-07-01 | H28: 2021-01-01 | K28: 2021-01-01 | N28: 2021-07-01 | Q28: 2021-07-01 | T28: 2022-01-01 | W28: 2022-01-01 | Z28: 2022-07-01 | AC28: 2022-07-01 | AF28: 2023-01-01 | AI28: 2023-01-01 | AL28: 2023-07-01
B29: 2020-08-01 | E29: 2020-08-01 | H29: 2021-02-01 | K29: 2021-02-01 | N29: 2021-08-01 | Q29: 2021-08-01 | T29: 2022-02-01 | W29: 2022-02-01 | Z29: 2022-08-01 | AC29: 2022-08-01 | AF29: 2023-02-01 | AI29: 2023-02-01 | AL29: 2023-08-01
B30: 2020-09-01 | E30: 2020-09-01 | H30: 2021-03-01 | K30: 2021-03-01 | N30: 2021-09-01 | Q30: 2021-09-01 | T30: 2022-03-01 | W30: 2022-03-01 | Z30: 2022-09-01 | AC30: 2022-09-01 | AF30: 2023-03-01 | AI30: 2023-03-01 | AL30: 2023-09-01
E31: 2020-10-01 | K31: 2021-04-01 | Q31: 2021-10-01 | W31: 2022-04-01 | AC31: 2022-10-01 | AI31: 2023-04-01
E32: 2020-11-01 | K32: 2021-05-01 | Q32: 2021-11-01 | W32: 2022-05-01 | AC32: 2022-11-01 | AI32: 2023-05-01
E33: 2020-12-01 | K33: 2021-06-01 | Q33: 2021-12-01 | W33: 2022-06-01 | AC33: 2022-12-01 | AI33: 2023-06-01
E34: 2021-01-01 | K34: 2021-07-01 | Q34: 2022-01-01 | W34: 2022-07-01 | AC34: 2023-01-01 | AI34: 2023-07-01
E35: 2021-02-01 | K35: 2021-08-01 | Q35: 2022-02-01 | W35: 2022-08-01 | AC35: 2023-02-01 | AI35: 2023-08-01
E36: 2021-03-01 | K36: 2021-09-01 | Q36: 2022-03-01 | W36: 2022-09-01 | AC36: 2023-03-01 | AI36: 2023-09-01
A39: Today: | B39: =TODAY() -> 2018-09-18 | C39: =CONCATENATE(LEFT(TEXT(B39, "mmmm"),3), "-", RIGHT(TEXT(B39, "yyyy"),2)) -> Sep-18
C40: =IF(DAY(B39)<7, HLOOKUP(C39,A1:AL2,2,FALSE), HLOOKUP(C39,A1:AL2,2,FALSE) +1) -> 106

Sheet Drop down boxes (hidden)
B1: Today's date | D1: Start dates | E1: End dates | H1: TO connection | J1: Gas | L1: DSF: Load response
A2: TODAY: | B2: =TODAY() -> 2018-09-18 | D2: =IF(DAY(B2)<7,EOMONTH(B2, 0),EOMONTH(B2,1)) -> 2018-10-31 | E2: =IF(DAY(B2)<7, EOMONTH(B2,1), EOMONTH(B2,2)) -> 2018-11-30 | H2: DNO connection | J2: Hydro | L2: DSF: Distributed generation (onsite) | N2: 2300 | O2: 2300
D3: =IF(DAY(B2)<7, EOMONTH(B2,0)+1, EOMONTH(B2,1)+1) -> 2018-11-01 | J3: Diesel | L3: DSF: Storage (onsite) | N3: 300
J4: Bio Fuel | L4: DSF: Distributed generation (for export) | N4: 700
J5: Coal | L5: DSF: Storage (for export) | N5: 1100
J6: Wind | L6: Multiple Fuel Type | N6: 1500
J7: Solar | N7: 1900
J8: Battery
J9: Interconnector
J10: Dual Fuel
J11: Other
G23: =IF($D$7="TO connection",'Drop down boxes'!$J$1:$J$11,IF($D$7="DNO connection",'Drop down boxes'!$L$1:$L$6,"")) -> 
